Cogmind - Beta 14 --- EXPLORER MODE // 2024.08.27 @ 16:32:52 Player: Minty Result: Destroyed by Alpha 7 with Multirail Performance ------------- Evolutions (9) 4500 Regions Visited (30) 6000 Robots Destroyed (379) 1895 Value Destroyed (24235) 24235 Prototype IDs (83) 1660 Alien Tech Used (0) 0 Bonus (21457) 21457 TOTAL SCORE: 59747 Bonus ------- High Alert Combat Kills 3324 Follower Combat Kills 8634 Entered Garrisons 1800 Used RIF Installer 5500 Network Hubs Disabled 200 Aligned with FarCom 300 Built Enhanced Grunts 300 A7 Reached Mainframe 300 Met R17 at Cetus 500 Met R17 at Research 2000 Friendly Fire -1401 Cogmind --------- Core Integrity 0/1600 Matter 229/300 Energy 65/100 System Corruption 17% Temperature Cool (0) Movement Core (50) Location -1/Command Parts ------- > --- POWER (2) -------- (None) > --- PROPULSION (7) --- (None) > --- UTILITY (14) ----- Spectral Analyzer Relay Coupler [Heavy] (26) > --- WEAPON (3) ------- (None) > --- INVENTORY (5) ---- Heavy Tesla Rifle Neutron Missile Launcher Molecular Scythe Peak State ------------ > --- POWER ------------ Zero-point Reactor Zero-point Reactor > --- PROPULSION ------- Antigrav System Gyrokinetic Inverter Improved Antigrav System Improved Antigrav System Improved Linear Gravjet Combat Antigrav System Combat Linear Gravjet > --- UTILITY ---------- Advanced Heat Sink Large Storage Unit Spectral Analyzer Experimental ECM Suite Improved Hacking Suite Improved Hacking Suite Improved System Shield Relay Coupler [NC] Relay Coupler [Swarmer] Relay Coupler [Brawler] Relay Coupler [Heavy] Relay Coupler [Heavy] Relay Coupler [Proto] Relay Coupler [Proto] > --- WEAPON ----------- Heavy Tesla Rifle Heavy Tesla Rifle Advanced Remote Datajack > --- INVENTORY -------- Advanced Weight Redist. System Relay Coupler [Sentry] Relay Coupler [Specialist] Relay Coupler [Heavy] Advanced Trap Extractor Enhanced Nova Cannon Enhanced Nova Cannon Heavy Linear Accelerator Compact Mass Driver Neutron Missile Launcher Fusion Bomb Launcher Molecular Scythe [Rating: 178] Favorites ----------- Power Zero-point Reactor Engine Light Ion Engine Power Core Micro Nuclear Core Reactor Zero-point Reactor Propulsion Improved Antigrav System Treads Light Treads Leg Aluminum Leg Wheel Compact Wheel Hover Unit Improved Antigrav System Flight Unit Improved Flight Unit Utility Improved Hacking Suite Device Advanced Heat Sink Storage Large Storage Unit Processor Advanced Target Analyzer Hackware Improved Hacking Suite Protection Improved Weapon Shielding Weapon Enhanced Autogun Energy Gun Gamma Rifle Energy Cannon Enhanced Nova Cannon Ballistic Gun Enhanced Autogun Ballistic Cannon Bore Cannon Launcher Grenade Launcher Special Weapon Advanced Remote Datajack Slashing Weapon Molecular Scythe Piercing Weapon Enhanced Force Lance Special Melee Weapon Advanced Datajack Build | -11 -10 -10 -10 -9 -8 -8 -8 -8 -7 -7 -6 -6 -5 -5 -5 -5 -5 -4 -4 -4 -3 -3 -3 -3 -2 -2 -2 -2 -1 -1 ------- Run | Yrd Mat Min Exi Min Mat Gar Mat Gar Fac Gar Fac Gar Fac Ext Cet Arc Hub Fac Gar Arm Res Gar Res Gar Res Gar Res Gar Acc Com Slots Evolved 19 | . 1 . . . 4 . . . 2 . 2 . 2 . . . . 2 . . 2 . . . 2 . . . 2 . Power 1 | . . . . . . . . . . . . . . . . . . . . . . . . . 1 . . . . . Propulsion 5 | . . . . . 2 . . . . . . . 1 . . . . . . . 1 . . . . . . . 1 . Utility 12 | . 1 . . . 2 . . . 2 . 2 . 1 . . . . 1 . . 1 . . . 1 . . . 1 . Weapon 1 | . . . . . . . . . . . . . . . . . . 1 . . . . . . . . . . . . Parts Attached 624 | . 9 9 . 4 28 17 10 22 51 24 9 17 15 14 9 8 4 19 19 40 5 32 15 38 56 41 25 27 28 29 Power 42 | . 1 1 . . 4 1 . 1 4 4 2 2 1 1 . . 1 4 . 4 . 1 . 2 3 3 2 . . . Engine 10 | . 1 1 . . 4 . . . . 1 1 1 . 1 . . . . . . . . . . . . . . . . Core 13 | . . . . . . 1 . 1 4 3 1 1 1 . . . 1 . . . . . . . . . . . . . Reactor 19 | . . . . . . . . . . . . . . . . . . 4 . 4 . 1 . 2 3 3 2 . . . Propulsion 123 | . 2 3 . . 10 1 6 5 20 1 . . 4 2 1 2 1 6 1 4 4 6 5 9 7 5 10 3 2 3 Treads 6 | . . 2 . . 4 . . . . . . . . . . . . . . . . . . . . . . . . . Leg . | . . . . . . . . . . . . . . . . . . . . . . . . . . . . . . . Wheel 3 | . 2 1 . . . . . . . . . . . . . . . . . . . . . . . . . . . . Hover 84 | . . . . . . . . . 8 1 . . 4 2 1 2 1 6 1 4 4 6 5 9 7 5 10 3 2 3 Flight 30 | . . . . . 6 1 6 5 12 . . . . . . . . . . . . . . . . . . . . . Utility 193 | . 3 2 . 2 7 7 . 4 9 11 6 9 6 5 5 6 . 4 7 10 1 14 4 17 8 14 6 11 4 11 Device 50 | . . 1 . 2 2 2 . . 1 . 3 2 2 3 . . . 3 . 2 . 4 2 2 3 2 3 4 1 6 Storage 4 | . 2 . . . . . . . 1 . 1 . . . . . . . . . . . . . . . . . . . Processor 14 | . 1 . . . 1 . . 2 1 . 1 . . 1 . . . . 1 . . 2 . 1 . 1 1 . . 1 Hackware 99 | . . . . . 2 2 . 2 3 11 . 6 3 . 4 6 . . 6 3 . 7 1 12 5 11 2 7 3 3 Protection 26 | . . 1 . . 2 3 . . 3 . 1 1 1 1 1 . . 1 . 5 1 1 1 2 . . . . . 1 Artifact . | . . . . . . . . . . . . . . . . . . . . . . . . . . . . . . . Weapon 266 | . 3 3 . 2 7 8 4 12 18 8 1 6 4 6 3 . 2 5 11 22 . 11 6 10 38 19 7 13 22 15 Energy Gun 21 | . 1 . . . 1 . . . 3 . . . . . . . . . 5 3 . . 3 . . . . . 3 2 Energy Cannon 46 | . . . . . . . . . . . . . . . . . . . . . . 1 . 6 15 11 5 4 2 2 Ballistic Gun 42 | . . . . 1 5 4 2 5 1 . . . . . 2 . 1 3 2 11 . 4 . . 1 . . . . . Ballistic Cannon 40 | . . . . . . . . 1 11 6 . 2 1 4 . . . . 2 2 . 2 1 . . . . 1 5 2 Launcher 31 | . 2 3 . 1 1 . . . 1 . 1 1 1 1 . . 1 2 . 1 . 1 1 . 1 . 1 1 7 3 Special Weapon 42 | . . . . . . . . . . . . . 2 1 1 . . . 2 5 . 3 1 4 8 3 1 4 4 3 Impact Weapon . | . . . . . . . . . . . . . . . . . . . . . . . . . . . . . . . Slashing Weapon 16 | . . . . . . . . . . . . 1 . . . . . . . . . . . . 6 2 . 3 1 3 Piercing Weapon 1 | . . . . . . . . . . . . . . . . . . . . . . . . . 1 . . . . . Special Melee Weapon 27 | . . . . . . 4 2 6 2 2 . 2 . . . . . . . . . . . . 6 3 . . . . Unidentified Prototypes 29 | . . . . . 3 . 1 . 10 . 1 . 2 . . . . . . 1 . 3 2 . 1 . . . 3 2 Corrupted Parts 2 | . . . . . . . . . . . . . . . . . . 2 . . . . . . . . . . . . System Corruption 5 | . . . . . . . . . . . . . . . . . . 5 . . . . . . . . . . . . Parts Lost 96 | . 1 8 . . . 1 . 3 6 4 1 4 1 6 . . 6 3 . 1 . 4 . 3 5 5 3 2 2 27 Power 8 | . . 1 . . . . . . 1 . . 2 . . . . 1 1 . . . . . 1 . . . . . 1 Propulsion 35 | . . 2 . . . 1 . 3 1 . . . 1 2 . . 4 1 . . . 3 . . 4 2 1 1 1 8 Utility 39 | . . 2 . . . . . . 4 2 1 1 . 3 . . 1 . . 1 . 1 . 2 1 3 1 1 1 14 Weapon 14 | . 1 3 . . . . . . . 2 . 1 . 1 . . . 1 . . . . . . . . 1 . . 4 Highest Loss Streak 12 | . 1 5 . . . 1 . 2 2 2 1 2 1 5 . . 6 3 . 1 . 2 . 1 2 5 3 1 1 12 To Critical Strikes 3 | . . . . . . . . . . . . . . . . . . 1 . . . 1 . . . . . . . 1 Average Slot Usage (%) 94 | . 99 96 75 98 95 97 100 96 96 98 93 93 96 88 96 97 95 65 93 93 94 96 97 99 91 87 94 97 96 72 Engine 2 | . 12 11 12 12 7 2 . . . . . 2 . 3 5 5 2 . . . . . . . . . . . . . Core 1 | . . . . . . 5 8 8 7 7 6 2 5 1 . . 1 . . . . . . . . . . . . . Reactor 2 | . . . . . . . . . . . . . . . . . . 2 5 5 4 4 4 3 6 4 6 8 7 3 Treads 2 | . . 12 25 25 18 . . . . . . . . . . . . . . . . . . . . . . . . . Hover 15 | . . . . . . . . . 15 28 25 25 26 23 26 27 24 11 20 20 22 24 27 27 21 20 22 23 24 17 Flight 5 | . . . . . 12 30 33 31 12 . . . . . . . . . . . . . . . . . . . . . Device 3 | . . 5 12 12 7 3 . . . 1 5 2 1 1 . . . . . . . 1 2 1 4 3 8 15 12 8 Storage 6 | . 12 12 12 12 8 8 8 8 7 7 6 6 5 5 5 5 5 5 5 5 4 4 4 4 4 4 4 4 3 2 Processor 10 | . 12 12 12 12 13 5 . 7 14 14 17 18 16 13 16 16 16 15 15 12 9 9 9 9 8 8 8 8 7 4 Hackware 22 | . . . . . 1 17 25 21 22 18 16 18 28 25 22 24 32 25 34 34 31 34 34 37 34 33 31 25 27 25 Protection 3 | . 12 5 . . 7 5 8 2 3 7 6 6 . . 8 6 . . . 2 8 3 1 1 . . . . . . Ballistic Gun 4 | . 7 . . 11 12 15 15 11 . . . . . . 5 11 11 3 2 11 13 10 3 . . . . . . . Ballistic Cannon 2 | . . . . . . . . 2 10 13 8 7 7 10 2 . . . 1 . . . 3 3 . . . . 3 1 Launcher 1 | . 9 23 . 10 2 . . . . . . . . . . . . . . . . . . . . . . . . . Special Weapon 1 | . . . . . . . . . . . . . 3 . 2 . . . 4 1 . 1 4 3 2 3 1 2 1 . Peak Build Rating 178 | 7 9 9 9 13 34 39 42 42 67 66 76 79 94 94 101 101 100 102 117 115 120 136 139 140 159 157 163 167 176 178 Average Rating 84 | 7 8 8 7 12 28 35 41 35 53 62 72 71 88 83 94 94 95 76 112 110 118 124 134 136 143 135 151 162 170 126 On Entrance 82 | 7 7 9 8 9 13 34 39 42 35 64 65 70 79 94 92 101 97 82 102 110 109 120 136 139 138 128 135 162 164 175 Naked Turns . | . . . . . . . . . . . . . . . . . . . . . . . . . . . . . . . Heaviest Build 93 | 20 22 22 14 21 26 26 24 26 39 37 41 42 51 57 60 60 49 50 60 60 54 68 54 67 90 75 83 93 87 79 Greatest Support 98 | 20 32 40 40 40 82 19 20 20 40 40 40 40 51 51 46 46 46 52 52 52 64 68 71 73 73 75 85 87 98 98 Greatest Overweight (x) 11 | . 1 1 . . 4 1 1 2 1 . 1 9 1 1 1 1 1 3 1 1 . 1 . 11 1 1 . 1 1 1 Average Overweight (x) . | . . . . . . 1 1 1 . . . . . . 1 . . . . . . . . . . . . . . . Largest Inventory Capacity 15 | 10 15 10 10 10 10 10 10 10 10 10 15 15 15 15 15 15 15 15 15 15 15 15 15 15 15 15 15 15 15 15 Average Capacity 12 | 10 10 10 10 10 10 10 10 10 10 10 13 15 15 15 15 15 15 15 15 15 15 15 15 15 15 15 15 15 15 14 Most Carried 15 | 7 10 10 10 10 10 10 10 10 10 10 15 15 15 15 15 15 15 15 15 15 15 15 15 15 15 15 15 15 15 15 Average Carried 12 | 7 9 5 8 9 9 9 10 9 9 9 12 12 14 13 13 14 14 14 14 14 14 14 14 14 14 14 14 14 14 13 Final Capacity 15 | 10 10 10 10 10 10 10 10 10 10 10 15 15 15 15 15 15 15 15 15 15 15 15 15 15 15 15 15 15 15 15 Final Carried 15 | 7 10 3 10 10 10 10 10 10 10 10 15 15 15 15 14 15 14 14 15 15 14 15 15 15 15 15 15 15 15 15 Class Distribution -------------------- 27% | Hacker-Mutant 19% | Botlord-Mutant 13% | Bothacker-Mutant 12% | Botlord-Skirmisher 5% | Trapper-Mutant 4% | Wizard-Gunner 3% | Wizard-Skirmisher 3% | Botlord-Sprinter 3% | Commander-Mutant Dominant Class ---------------- Hacker-Mutant | -10/Materials Hacker-Mutant | -10/Mines Hacker-Mutant | -10/Exiles Trapper-Mutant | -9/Mines Trapper-Mutant | -8/Materials Hacker-Mutant | -8/Garrison Hacker-Mutant | -8/Materials Hacker-Mutant | -8/Garrison Bothacker-Mutant | -7/Factory Bothacker-Mutant | -7/Garrison Bothacker-Mutant | -6/Factory Bothacker-Mutant | -6/Garrison Botlord-Mutant | -5/Factory Botlord-Mutant | -5/Extension Commander-Mutant | -5/Cetus Wizard-Mutant | -5/Archives Wizard-Mutant | -5/Hub_04(d) Wizard-Mutant | -4/Factory Wizard-Gunner | -4/Garrison Wizard-Gunner | -4/Armory Wizard-Skirmisher | -3/Research Botlord-Skirmisher | -3/Garrison Botlord-Sprinter | -3/Research Botlord-Skirmisher | -3/Garrison Botlord-Mutant | -2/Research Botlord-Mutant | -2/Garrison Botlord-Mutant | -2/Research Botlord-Mutant | -2/Garrison Botlord-Skirmisher | -1/Access Botlord-Mutant | -1/Command Resources | -11 -10 -10 -10 -9 -8 -8 -8 -8 -7 -7 -6 -6 -5 -5 -5 -5 -5 -4 -4 -4 -3 -3 -3 -3 -2 -2 -2 -2 -1 -1 ----------- Run | Yrd Mat Min Exi Min Mat Gar Mat Gar Fac Gar Fac Gar Fac Ext Cet Arc Hub Fac Gar Arm Res Gar Res Gar Res Gar Res Gar Acc Com Matter Collected 17064 | 200 164 171 . 41 1205 972 364 615 1522 1318 192 535 225 706 277 214 10 345 398 1395 84 843 532 929 809 754 278 542 764 660 Remotely . | . . . . . . . . . . . . . . . . . . . . . . . . . . . . . . . Salvage Created 16138 | . 722 48 . 7 1518 810 398 498 1550 778 255 436 42 636 21 198 196 323 403 973 256 591 389 457 813 703 450 1231 1189 247 Parts 815 | . 40 1 . 2 84 56 20 37 108 33 15 17 5 24 1 17 12 10 26 48 10 26 21 20 33 28 18 48 46 9 Haulers Intercepted 11 | . 2 . . . 2 . 1 . 3 . 2 . . . . . . . . . . . . . . . . . 1 . Recyclers Shooed 9 | . 1 . . . 2 . . . 2 . 1 . 1 . . . . . . . . . . . . . . . 1 1 Parts Field Recycled . | . . . . . . . . . . . . . . . . . . . . . . . . . . . . . . . Retrieved Matter . | . . . . . . . . . . . . . . . . . . . . . . . . . . . . . . . Parts Self-Destructed . | . . . . . . . . . . . . . . . . . . . . . . . . . . . . . . . Prevented . | . . . . . . . . . . . . . . . . . . . . . . . . . . . . . . . Kills | -11 -10 -10 -10 -9 -8 -8 -8 -8 -7 -7 -6 -6 -5 -5 -5 -5 -5 -4 -4 -4 -3 -3 -3 -3 -2 -2 -2 -2 -1 -1 ------- Run | Yrd Mat Min Exi Min Mat Gar Mat Gar Fac Gar Fac Gar Fac Ext Cet Arc Hub Fac Gar Arm Res Gar Res Gar Res Gar Res Gar Acc Com Combat Hostiles Destroyed 296 | . 9 19 . 2 30 24 8 18 26 18 2 11 1 10 . . 3 5 6 17 3 11 5 10 9 8 5 17 15 4 Melee 10 | . . . . . . . . . . . . . . . . . . . . . . . . . 4 5 1 . . . Guns 121 | . 8 . . . 20 24 7 18 . . . . . . . . 1 2 5 16 3 11 3 2 . . . . 1 . Cannons 99 | . . . . . . . . . 20 18 1 9 . 9 . . . . 1 1 . . 2 7 5 2 3 12 6 3 AOE 57 | . 1 19 . 2 10 . 1 . 6 . 1 2 1 1 . . 2 3 . . . . . . . . 1 3 4 . Classes Destroyed 23 | . 7 2 . . 3 2 . . 4 . 1 . . 1 . . . . . 2 . . . . 1 . . . . . Worker 13 | . . 1 . . 3 . . . 6 . 1 . 1 . . . . . . . . . . . 1 . . . . . Builder 18 | . 1 . . . 4 . . . 7 . 1 . . 2 . . . . . . . . . . . . . . 3 . Tunneler 3 | . . . . . 1 . . . 2 . . . . . . . . . . . . . . . . . . . . . Hauler 11 | . 2 . . . 2 . 1 . 3 . 2 . . . . . . . . . . . . . . . . . 1 . Recycler 8 | . 2 . . . . . . . 4 . . . . 1 . . . . . . . . . . . . . . 1 . Mechanic 2 | . 1 . . . . . . . . . . . . . . . . . . 1 . . . . . . . . . . Operator 25 | . . . . . 4 . 2 . 4 1 2 . . 2 . 6 . . 1 1 . . . . . . 1 . 1 . Watcher 16 | . 2 . . . 2 . . . 1 . . . 1 . 1 . . 1 . 2 . . 3 . . . . 1 2 . Swarmer 47 | . 2 . . 2 3 12 2 11 2 . . 3 . . . . . . . 2 . 1 1 1 . . . 5 . . Cutter 7 | . . . . . . . . . 3 1 . . . . . . . . . . . . . 2 . 1 . . . . Saboteur 8 | . . . . . . . . . . . . . . . . . . . . 4 . 1 . . . . . 3 . . Grunt 98 | . 7 . . . 20 4 3 4 11 4 1 6 1 7 . . . 3 . 3 2 3 2 1 . . 1 9 5 1 Brawler 5 | . . . . . . 2 . 1 1 1 . . . . . . . . . . . . . . . . . . . . Duelist 4 | . . . . . . . . . 1 1 . . . . . . . . . . . . . . . . . . 2 . Protector 1 | . . . . . . . . . . . . . . . . . . . . . . . . . 1 . . . . . Sentry 44 | . . . . . 7 5 2 1 3 5 . 3 . 2 . . 1 . . 3 1 . 2 1 2 1 1 2 1 1 Demolisher 2 | . . . . . . . . . . . 1 . . . . . . . . 1 . . . . . . . . . . Specialist 5 | . . . . . . . . . . . . . . . . . . . . 1 . . . 1 . 3 . . . . Hunter 20 | . . . . . . . . . 2 1 . 1 . . . . 2 2 1 2 . 2 . 1 1 1 1 . 3 . Programmer 31 | . . . . . . 1 1 1 1 5 . . . . . . . . 5 . . 3 . 3 3 1 1 1 4 1 Heavy 2 | . . . . . . . . . 2 . . . . . . . . . . . . . . . . . . . . . Behemoth 7 | . . . . . . . . . . . . . . 1 . . . . . . . 1 . 1 2 1 1 . . . Armor Guard 1 | . . . . . . . . . . . . . . . . . . . . 1 . . . . . . . . . . Combat Programmer 1 | . . . . . . . . . . . . . . . . . . . . . . . . . . . . . . 1 Assembled 19 | . . 19 . . . . . . . . . . . . . . . . . . . . . . . . . . . . Best Kill Streak 20 | . 4 20 . 2 9 6 3 4 15 3 4 4 2 7 1 3 3 3 3 5 3 5 3 4 2 3 2 3 9 1 Combat Bots Only 19 | . 4 19 . 2 7 6 3 4 7 3 2 4 1 3 . . 3 3 3 4 3 5 3 4 2 3 1 3 6 1 Max Kills in Single Turn 6 | . 1 6 . 2 3 1 1 2 6 1 2 2 2 1 1 1 2 1 1 1 1 1 1 1 1 1 1 3 3 1 Gunslinging 1 | . . . . . . . . 1 . . . . . . . . . . . . . . . . . . . . . . Exploded 6 | . 1 6 . 2 3 . 1 . 3 . 1 2 1 1 . . 2 1 . . . . . . . . 1 3 1 . Melee 1 | . . . . . . . . . . . . . . . . . . . . . . . . . 1 1 1 . . . Uniques/NPCs Destroyed . | . . . . . . . . . . . . . . . . . . . . . . . . . . . . . . . Combat | -11 -10 -10 -10 -9 -8 -8 -8 -8 -7 -7 -6 -6 -5 -5 -5 -5 -5 -4 -4 -4 -3 -3 -3 -3 -2 -2 -2 -2 -1 -1 -------- Run | Yrd Mat Min Exi Min Mat Gar Mat Gar Fac Gar Fac Gar Fac Ext Cet Arc Hub Fac Gar Arm Res Gar Res Gar Res Gar Res Gar Acc Com Hostile Shots Fired 1814 | . 39 46 . . 96 71 31 58 112 162 3 133 4 83 2 . 33 76 39 70 10 85 17 61 77 45 27 53 59 322 Missed 642 | . 9 7 . . 36 27 5 17 47 57 2 65 2 35 . . 9 35 12 26 1 30 8 23 24 17 8 18 28 94 Damage Taken 15344 | . 219 625 . . 618 341 260 344 922 523 12 641 219 676 36 . 458 416 259 578 101 581 108 552 1033 811 282 574 479 3676 Core 3548 | . 29 164 . . 74 81 69 71 139 95 . 110 43 139 . . 57 59 11 67 10 116 14 29 141 283 45 100 42 1560 Absorbed by Shields 761 | . . . . . . . . . . 105 . 11 . . 35 . . . 76 11 23 132 11 66 85 . . 51 . 155 Redirected to Shielding 580 | . . . . . 108 88 76 11 3 70 . 25 . . . . . . . 18 11 101 . 69 . . . . . . Ignored by Resistances 9488 | . 139 368 . . 378 222 161 211 608 424 7 409 122 398 41 . 254 250 196 353 75 422 72 367 640 355 164 368 280 2204 Regen/Repaired (Parts) 396 | . . . . . 76 . . . . . . . 180 . . . . . . 64 . . 76 . . . . . . . Core Remaining (%) 70 | 100 . . . 22 . . . 46 . 66 . 87 . . . . 76 . . 88 . . . 87 . . . 60 . . Volleys Fired 1218 | . 42 11 . 1 90 97 32 66 101 68 12 51 20 43 18 18 7 12 28 87 7 60 26 67 44 42 17 53 54 44 Largest 3 | . 2 2 . 1 2 2 2 2 2 2 2 2 2 2 2 2 2 3 3 3 3 3 2 3 3 3 2 3 3 2 Hottest 360 | . 70 60 . 30 86 50 50 57 117 117 117 117 117 117 117 70 70 110 150 126 99 108 93 240 360 360 240 360 260 240 Shots Fired 2135 | . 80 17 . 1 176 193 63 125 181 125 15 53 23 77 19 36 14 20 47 199 21 111 45 101 62 62 25 91 91 62 Gun 1083 | . 74 . . . 159 193 63 120 28 . . . . . . 36 14 13 37 170 21 75 20 31 . . . . 27 2 Cannon 767 | . . . . . . . . 5 151 125 14 51 11 73 4 . . . 4 10 . 8 19 46 40 32 21 67 45 41 Launcher 73 | . 6 17 . 1 17 . . . 2 . 1 2 . 3 . . . 7 . . . 1 . . . . 3 1 10 2 Special 212 | . . . . . . . . . . . . . 12 1 15 . . . 6 19 . 27 6 24 22 30 1 23 9 17 Kinetic 1519 | . 39 . . . 153 193 63 125 160 125 14 51 11 73 4 36 14 13 28 180 21 83 39 42 . . . . 38 14 Thermal 258 | . 6 . . . 6 . . . 19 . . . . . . . . . . . . . . 33 40 32 21 67 7 27 Explosive 67 | . 6 17 . 1 17 . . . 2 . 1 2 . . . . . 5 . . . . . . . . 3 1 10 2 Electromagnetic 79 | . 29 . . . . . . . . . . . . 3 . . . 2 13 . . 1 . 2 . . . . 27 2 Robot Hit Streak 53 | . 26 17 . . 53 21 20 38 10 15 12 25 12 19 11 9 9 22 14 44 10 16 19 36 16 27 18 18 17 25 Robot Miss Streak 4 | . 1 1 . . 2 1 1 1 3 3 1 1 4 3 1 1 1 1 1 2 1 3 2 2 2 1 1 3 2 1 Penetration Max 1 | . . . . . . . . . 1 1 . . . 1 . 1 . . 1 1 . 1 . . . . . . . . Secondary Targets 16 | . 1 . . . 3 3 2 3 . . . . . . . . . . . 1 1 2 . . . . . . . . Max Gunslinging Chain 1 | . 1 . . . 1 1 1 1 . . . . . . . . . . . 1 1 1 . . . . . . . . Shots Hit Robots 1623 | . 65 13 . . 149 104 55 75 126 72 13 48 18 59 17 26 11 19 32 150 18 69 35 80 78 67 31 69 70 54 Core Hits 675 | . 27 42 . 4 86 38 16 27 63 30 12 26 9 25 . 13 12 13 11 44 8 23 15 20 17 12 12 23 30 17 Critical Kills 63 | . 1 . . . . . . . 21 14 . . . . . 4 . 1 . 8 1 5 4 1 . 1 . 2 . . Critical Parts Destroyed 95 | . . . . . 1 . 1 . 28 25 . . . 1 . 8 2 3 5 14 . 5 2 . . . . . . . Critical Strikes 212 | . 3 . . . 1 . 1 . 50 41 1 6 1 9 1 12 5 4 7 28 1 10 7 8 1 2 . 3 8 2 Burn 5 | . 1 . . . . . . . 1 . . . . . . . . . . . . . . 3 . . . . . . Meltdown 4 | . . . . . . . . . . . . . . . . . . . . . . . . 1 . 1 . 2 . . Destroy 163 | . 1 . . . 1 . 1 . 49 40 . . . 1 . 12 5 4 5 27 1 10 6 . . . . . . . Blast 32 | . . . . . . . . . . 1 1 6 1 8 1 . . . 2 1 . . 1 4 . . . . 4 2 Corrupt 5 | . 1 . . . . . . . . . . . . . . . . . . . . . . . . . . . 4 . Sever 3 | . . . . . . . . . . . . . . . . . . . . . . . . . 1 1 . 1 . . Melee Attacks 110 | . . . . . . 3 1 9 8 2 . 13 . . . . . . . . . . . . 28 18 12 14 . 2 Impact . | . . . . . . . . . . . . . . . . . . . . . . . . . . . . . . . Slashing 54 | . . . . . . . . . . . . . . . . . . . . . . . . . 19 14 5 14 . 2 Piercing . | . . . . . . . . . . . . . . . . . . . . . . . . . . . . . . . Sneak Attacks 35 | . . . . . . . . . 5 1 . 5 . . . . . . . . . . . . 11 5 6 1 . 1 Combat Hostiles 17 | . . . . . . . . . . 1 . . . . . . . . . . . . . . 9 5 1 1 . . Follow-up Attacks . | . . . . . . . . . . . . . . . . . . . . . . . . . . . . . . . Damage Inflicted 48594 | . 956 1216 . 59 3477 1828 1244 1276 4296 1637 687 1523 599 2398 131 778 796 1044 939 3396 459 1508 922 1998 2956 2043 1466 2727 3809 2426 Guns 16333 | . 792 . . . 2536 1828 1051 1276 426 . . . . . . 778 315 219 820 2963 459 1166 447 694 . . . . 501 62 Cannons 19939 | . . . . . . . . . 2377 1637 510 1291 149 2067 131 . . . 119 433 . 342 475 1304 1580 1124 907 1897 1843 1753 Explosions 8940 | . 150 1216 . 48 936 . 193 . 1476 . 177 232 450 331 . . 444 825 . . . . . . . . 266 257 1465 474 Melee 3280 | . . . . . . . . . . . . . . . . . . . . . . . . . 1364 919 293 573 . 131 Ramming 102 | . 14 . . 11 5 . . . 17 . . . . . . . 37 . . . . . . . 12 . . . . 6 Kinetic 26912 | . 380 . . . 2416 1828 1051 1276 2481 1637 510 1291 149 2067 131 778 315 219 711 3396 459 1508 922 1211 . . . . 1591 585 Thermal 8766 | . 74 . . . 120 . 193 . 519 . . . . 88 . . . . . . . . . 739 1580 1124 907 1897 357 1168 Explosive 7424 | . 150 1216 . 48 936 . . . 1279 . 177 232 450 . . . . 579 . . . . . . . . 266 257 1360 474 Electromagnetic 2110 | . 338 . . . . . . . . . . . . 243 . . 444 246 228 . . . . 48 . . . . 501 62 Impact . | . . . . . . . . . . . . . . . . . . . . . . . . . . . . . . . Slashing 3280 | . . . . . . . . . . . . . . . . . . . . . . . . . 1364 919 293 573 . 131 Piercing . | . . . . . . . . . . . . . . . . . . . . . . . . . . . . . . . Highest Corruption 17 | . 1 2 2 2 . . 1 1 . 2 1 2 1 2 . . 1 5 9 10 . 1 1 1 . 5 5 5 1 17 Average Corruption 3 | . 1 1 2 2 . . 1 1 . 1 1 1 1 1 . . 1 4 7 9 . 1 1 1 . 3 5 5 1 6 Corruption Purged 2 | . . . . . . . . . . . . . . 2 . . . . . . . . . . . . . . . . Corruption Blocked . | . . . . . . . . . . . . . . . . . . . . . . . . . . . . . . . Effects 191 | . 8 2 4 5 . . 2 7 . 5 2 8 1 4 . . 1 1 19 43 . 5 9 5 . 10 3 22 5 20 Message Errors 49 | . 2 1 2 2 . . . 2 . 1 1 2 . 2 . . . . 4 9 . 2 2 2 . 2 . 6 3 4 Matter Fused 31 | . 2 . . 1 . . 2 1 . 1 . 2 . 2 . . . . 2 4 . 1 1 . . 3 . 5 1 3 Heat Flow Errors 15 | . 1 . . . . . . . . . . . . . . . . . . 4 . . 1 . . 4 . 1 1 3 Energy Discharges 24 | . . 1 . . . . . . . . . 1 . . . . . . 7 4 . 2 . 1 . . 1 5 . 2 Parts Rejected 5 | . . . . . . . . 1 . . . . . . . . . 1 . 1 . . . 1 . . 1 . . . Parts Fused 5 | . . . . 2 . . . . . 2 . . . . . . . . . 1 . . . . . . . . . . Data Loss (minor) 26 | . 2 . 2 . . . . 1 . . 1 3 1 . . . . . 1 4 . . 1 1 . 1 1 2 . 5 Data Loss (major) 15 | . 1 . . . . . . 1 . 1 . . . . . . 1 . 4 5 . . 2 . . . . . . . Misfires 11 | . . . . . . . . 1 . . . . . . . . . . 1 3 . . 2 . . . . 3 . 1 Alerts 2 | . . . . . . . . . . . . . . . . . . . . 1 . . . . . . . . . 1 Misdirections 1 | . . . . . . . . . . . . . . . . . . . . 1 . . . . . . . . . . Weapon Failures 7 | . . . . . . . . . . . . . . . . . . . . 6 . . . . . . . . . 1 Overload Shots . | . . . . . . . . . . . . . . . . . . . . . . . . . . . . . . . Overflow Damage 1433 | . 5 47 . . 40 . 42 . 254 . . . 18 21 25 . . 5 40 . . . . 128 171 67 46 198 318 8 Projectiles 494 | . . . . . . . . . 34 . . . . 21 25 . . . 40 . . . . 128 5 21 . 65 147 8 Explosions 555 | . 5 47 . . 40 . 42 . 220 . . . 18 . . . . 5 . . . . . . . . . 7 171 . Melee 384 | . . . . . . . . . . . . . . . . . . . . . . . . . 166 46 46 126 . . Knockbacks 75 | . . . . . . . . . 15 18 1 5 3 8 . . . . 1 1 . . . 13 . . . . 8 2 Impact . | . . . . . . . . . . . . . . . . . . . . . . . . . . . . . . . Kinetic 72 | . . . . . . . . . 13 18 1 4 3 8 . . . . 1 1 . . . 13 . . . . 8 2 Secondary 3 | . . . . . . . . . 2 . . 1 . . . . . . . . . . . . . . . . . . Self-Inflicted Damage 536 | . . 117 . . 27 . 33 . 15 . . 16 199 . . . 18 . . 21 . . . . 6 . . . . 84 Shots 18 | . . 6 . . 2 . 1 . 1 . . 1 4 . . . . . . 1 . . . . . . . . . 2 Rammed 10 | . . . . 3 2 . . . 1 . . . . . . . 2 . . . . . . . 1 . . . . 1 Targets Rammed 13 | . 3 . . 3 2 . . . 1 . . . . . . . 2 . . . . . . . 1 . . . . 1 Kicked 3 | . 3 . . . . . . . . . . . . . . . . . . . . . . . . . . . . . Crushed . | . . . . . . . . . . . . . . . . . . . . . . . . . . . . . . . Highest Temperature 634 | . 269 76 . . 64 95 50 76 225 345 33 72 42 212 33 . 4 35 146 264 141 366 210 374 634 618 197 199 277 541 Average Temperature 73 | . 55 33 . . 10 18 17 23 55 91 9 24 14 67 10 . 4 16 66 36 74 129 81 93 139 189 87 95 57 145 Received Heat Transfer 3677 | . 198 40 . . 459 162 36 189 243 189 9 206 9 306 . . 54 115 12 151 47 55 40 130 379 126 81 159 54 228 Effects 33 | . 2 . . . . . . . . 5 . . . . . . . . . . . 6 . 1 4 8 . . . 7 Shutdowns 5 | . . . . . . . . . . . . . . . . . . . . . . 1 . . 1 2 . . . 1 Energy Bleed 6 | . . . . . . . . . . 2 . . . . . . . . . . . 3 . . . 1 . . . . Interference 13 | . 2 . . . . . . . . 3 . . . . . . . . . . . 2 . . 1 2 . . . 3 Matter Decay 2 | . . . . . . . . . . . . . . . . . . . . . . . . . 1 1 . . . . Short Circuit 4 | . . . . . . . . . . . . . . . . . . . . . . . . . 1 1 . . . 2 Damage (minor) 2 | . . . . . . . . . . . . . . . . . . . . . . . . 1 . . . . . 1 Damage (core) 1 | . . . . . . . . . . . . . . . . . . . . . . . . . . 1 . . . . Siege Activations . | . . . . . . . . . . . . . . . . . . . . . . . . . . . . . . . Robots Corrupted 8 | . 1 . . . . . . . . . . . . . . . . 1 1 . . . . . . . . . 4 1 Combat Hostiles 5 | . . . . . . . . . . . . . . . . . . . . . . . . . . . . . 4 1 Parts Fried 35 | . 2 . . . . . . . . . . . . . . . 3 3 4 1 . . . . 2 . . . 15 5 Impact Corruptions . | . . . . . . . . . . . . . . . . . . . . . . . . . . . . . . . Robots Melted 4 | . . . . . . . . . . . . . . . . . . . . . . . . 1 . 1 . 2 . . Combat Hostiles 4 | . . . . . . . . . . . . . . . . . . . . . . . . 1 . 1 . 2 . . Parts Melted 26 | . 1 . . . . . 2 . 1 . . . . . . . . . . . . 1 . 2 6 4 2 7 . . Heat Transferred 7852 | . 296 . . . 222 . 100 . 729 . . . . . . . . . . . . . . 1054 1221 793 703 1628 235 871 Parts Sabotaged 4 | . . . . . . . . . . . . . . . . . . . . 2 . . . 2 . . . . . . Parts Stolen . | . . . . . . . . . . . . . . . . . . . . . . . . . . . . . . . Parts Stripped . | . . . . . . . . . . . . . . . . . . . . . . . . . . . . . . . Power Chain Reactions 2 | . . . . . . . . . . . . . . 1 . . . . . . . . . . . . . . 1 . Alert | -11 -10 -10 -10 -9 -8 -8 -8 -8 -7 -7 -6 -6 -5 -5 -5 -5 -5 -4 -4 -4 -3 -3 -3 -3 -2 -2 -2 -2 -1 -1 ------- Run | Yrd Mat Min Exi Min Mat Gar Mat Gar Fac Gar Fac Gar Fac Ext Cet Arc Hub Fac Gar Arm Res Gar Res Gar Res Gar Res Gar Acc Com Peak Influence 1598 | . 208 59 . 66 572 1168 620 1038 1276 1598 992 1442 920 643 224 142 551 321 439 661 358 890 971 1074 1149 512 365 938 776 219 Initial 677 | . . 23 . . 18 207 417 97 404 677 622 524 562 331 98 . 33 157 172 171 187 208 312 409 356 480 151 213 426 79 Average 499 | . 69 13 . 14 308 787 422 632 797 1101 723 981 701 415 84 110 306 256 318 360 268 591 608 829 730 365 247 631 412 78 Maximum Alert Level 4 | . 1 . . . 2 4 2 3 4 4 3 4 3 2 1 . 2 1 2 2 1 3 3 3 4 2 1 3 3 1 Low Security (%) 23 | 100 97 100 . 100 28 . 6 15 . . . . . . 87 100 38 25 4 14 33 . . . . . 31 2 16 93 Level 1 19 | . 2 . . . 38 13 23 9 3 . . . . 45 12 . 8 75 71 40 66 21 16 . 11 70 68 19 13 6 Level 2 28 | . . . . . 32 20 70 24 36 7 70 28 45 54 . . 53 . 24 44 . 35 45 19 41 29 . 33 67 . Level 3 21 | . . . . . . 44 . 50 44 44 29 32 54 . . . . . . . . 42 37 80 28 . . 44 2 . Level 4 6 | . . . . . . 21 . . 15 48 . 39 . . . . . . . . . . . . 19 . . . . . Level 5 . | . . . . . . . . . . . . . . . . . . . . . . . . . . . . . . . High Security . | . . . . . . . . . . . . . . . . . . . . . . . . . . . . . . . Max Security . | . . . . . . . . . . . . . . . . . . . . . . . . . . . . . . . Squads Dispatched 76 | . 1 . . . 6 . 2 . 20 . 3 . 7 2 . . 1 2 . 6 1 . 7 . 9 . 2 . 6 1 Investigation 35 | . 1 . . . 3 . 1 . 9 . 2 . 5 1 . . . 1 . 1 . . 5 . 3 . 1 . 1 1 Extermination 5 | . . . . . . . . . 2 . . . . . . . . . . 2 . . . . . . . . 1 . Reinforcement 27 | . . . . . 3 . . . 9 . . . 2 1 . . 1 1 . 1 . . 2 . 3 . 1 . 3 . Assault 5 | . . . . . . . . . . . . . . . . . . . . 2 . . . . 2 . . . 1 . Garrison 4 | . . . . . . . 1 . . . 1 . . . . . . . . . 1 . . . 1 . . . . . Intercept . | . . . . . . . . . . . . . . . . . . . . . . . . . . . . . . . Searches Triggered . | . . . . . . . . . . . . . . . . . . . . . . . . . . . . . . . Construction Impeded 4 | . . . . . 1 . . . 1 . . . 1 . . . 1 . . . . . . . . . . . . . Haulers Reinforced 5 | . . . . . . . . . 3 . . . . . . . . . . . . . . . 1 . . . 1 . Active Scanning Responses . | . . . . . . . . . . . . . . . . . . . . . . . . . . . . . . . Cargo Convoy Interrupts 1 | . . . . . . . . . 1 . . . . . . . . . . . . . . . . . . . . . Stealth | -11 -10 -10 -10 -9 -8 -8 -8 -8 -7 -7 -6 -6 -5 -5 -5 -5 -5 -4 -4 -4 -3 -3 -3 -3 -2 -2 -2 -2 -1 -1 --------- Run | Yrd Mat Min Exi Min Mat Gar Mat Gar Fac Gar Fac Gar Fac Ext Cet Arc Hub Fac Gar Arm Res Gar Res Gar Res Gar Res Gar Acc Com Distress Signals 33 | . 2 . . . 4 . 2 . 4 . 2 . 1 . . . 1 . . 6 . . 2 . 2 . 1 . 3 3 Communications Jammed 176 | . . . . . . . . . 2 . . . . . . . . . . . . . . . 112 . 11 . 1 50 Distress Signals 176 | . . . . . . . . . 2 . . . . . . . . . . . . . . . 112 . 11 . 1 50 Times Spotted 756 | . 21 22 . . 48 31 20 32 68 20 9 37 12 22 8 18 9 11 16 49 4 35 20 39 52 29 14 40 38 32 Peak Tracking Total 20 | . 3 20 . . 4 6 4 6 6 4 7 8 3 4 5 1 12 4 6 6 4 7 4 5 9 4 4 7 6 14 Tactical Retreats 42 | . . . . . 2 3 1 3 5 . . 1 1 . . . 1 1 2 3 . 3 1 . . 1 . 3 3 8 Traps | -11 -10 -10 -10 -9 -8 -8 -8 -8 -7 -7 -6 -6 -5 -5 -5 -5 -5 -4 -4 -4 -3 -3 -3 -3 -2 -2 -2 -2 -1 -1 ------- Run | Yrd Mat Min Exi Min Mat Gar Mat Gar Fac Gar Fac Gar Fac Ext Cet Arc Hub Fac Gar Arm Res Gar Res Gar Res Gar Res Gar Acc Com Traps Triggered 42 | . 2 . . . . 1 1 6 2 6 . 1 2 . . . . . 1 1 . 1 1 6 . 2 . 5 1 3 Indirectly . | . . . . . . . . . . . . . . . . . . . . . . . . . . . . . . . Trap Hack Attempts 86 | . . . . . . 20 1 10 31 1 . 10 . . . . . . . . . . . . 10 3 . . . . Triggered . | . . . . . . . . . . . . . . . . . . . . . . . . . . . . . . . Disarmed 13 | . . . . . . 2 . . . . . 1 . 2 . . . . . 4 . . . 1 2 1 . . . . Reprogrammed 49 | . 6 . . . 4 3 1 1 9 1 . 5 . 6 . . . . . 6 . 6 . . 1 . . . . . Reused 8 | . . . . . 4 1 . . 1 . . . . . . . . . . 2 . . . . . . . . . . Traps Extracted 4 | . . . . . 4 . . . . . . . . . . . . . . . . . . . . . . . . . Installed 6 | . . . . . 4 . . . . . . . . . . . . . . . . . . . . . . 1 . 1 Triggered 9 | . 1 . . . 4 1 . . 1 . . . . . . . . . . 2 . . . . . . . . . . Most Traps Carried 4 | . . . . 4 4 4 4 4 4 4 4 4 4 4 4 4 4 4 4 4 4 4 4 4 4 4 4 4 4 4 Objects Rigged 10 | . . . . . . . 2 . 2 . . . 4 . . . 1 . . . . . . 1 . . . . . . Exploded 3 | . . . . . . . 1 . . . . . 1 . . . 1 . . . . . . . . . . . . . Machines | -11 -10 -10 -10 -9 -8 -8 -8 -8 -7 -7 -6 -6 -5 -5 -5 -5 -5 -4 -4 -4 -3 -3 -3 -3 -2 -2 -2 -2 -1 -1 ---------- Run | Yrd Mat Min Exi Min Mat Gar Mat Gar Fac Gar Fac Gar Fac Ext Cet Arc Hub Fac Gar Arm Res Gar Res Gar Res Gar Res Gar Acc Com Machines Disabled 141 | . 3 . . 4 3 4 3 6 23 10 2 5 7 8 . 3 4 . 4 10 . 6 1 9 6 4 2 10 1 3 Max in Single Turn 11 | . 1 . . 4 1 1 2 1 11 1 1 1 4 2 . 1 3 . 1 1 . 1 1 1 1 1 1 2 1 1 Garrison Access 1 | . . . . . . . . . . . . . . . . . . . . . . . . . 1 . . . . . Garrison Relay 36 | . . . . . . 4 . 3 . 4 . 3 . . . . . . 2 . . 3 . 8 . 4 . 5 . . Phase Generator 1 | . . . . . . . . 1 . . . . . . . . . . . . . . . . . . . . . . Network Hub 1 | . . . . . . . . . . . . . . . . . 1 . . . . . . . . . . . . . Energy Cycler 3 | . . . . . . . . . . . . . . 2 . . . . . 1 . . . . . . . . . . Machines Repaired . | . . . . . . . . . . . . . . . . . . . . . . . . . . . . . . . Machines Dismantled . | . . . . . . . . . . . . . . . . . . . . . . . . . . . . . . . Machines Sabotaged . | . . . . . . . . . . . . . . . . . . . . . . . . . . . . . . . Overloaded Fab Kills . | . . . . . . . . . . . . . . . . . . . . . . . . . . . . . . . Hacking | -11 -10 -10 -10 -9 -8 -8 -8 -8 -7 -7 -6 -6 -5 -5 -5 -5 -5 -4 -4 -4 -3 -3 -3 -3 -2 -2 -2 -2 -1 -1 --------- Run | Yrd Mat Min Exi Min Mat Gar Mat Gar Fac Gar Fac Gar Fac Ext Cet Arc Hub Fac Gar Arm Res Gar Res Gar Res Gar Res Gar Acc Com Machines Accessed 131 | . 9 . 2 . 9 3 5 1 19 2 7 3 6 8 2 . 1 3 1 10 1 2 7 5 8 1 4 . 8 4 Terminals 85 | . 8 . . . 6 3 4 1 9 2 3 3 3 8 2 . 1 1 1 6 . 2 2 5 2 1 2 . 6 4 Fabricators 14 | . . . . . . . . . 4 . 1 . 1 . . . . . . 3 . . 1 . 2 . . . 2 . Repair Stations 7 | . . . . . 1 . . . 1 . . . 2 . . . . . . 1 . . 1 . 1 . . . . . Recycling Units 10 | . 1 . . . 1 . . . 3 . 1 . . . . . . 1 . . . . 1 . 1 . 1 . . . Scanalyzers 3 | . . . . . . . . . 1 . 1 . . . . . . . . . . . 1 . . . . . . . Garrison Access 10 | . . . . . 1 . 1 . 1 . 1 . . . . . . 1 . . 1 . 1 . 2 . 1 . . . Total Hacks 594 | . 30 . 2 . 27 5 41 3 74 4 19 9 16 35 5 . 7 14 7 76 4 17 60 39 47 1 13 . 22 17 Successful 399 | . 22 . 2 . 21 3 36 1 52 2 10 3 9 26 5 . 7 7 3 54 1 9 48 17 30 1 6 . 16 8 Failed 195 | . 8 . . . 6 2 5 2 22 2 9 6 7 9 . . . 7 4 22 3 8 12 22 17 . 7 . 6 9 Catastrophic 23 | . . . . . 2 . . . 2 . 1 . 1 . . . . 3 2 2 . 1 1 6 2 . . . . . Database Lockouts . | . . . . . . . . . . . . . . . . . . . . . . . . . . . . . . . Manual 358 | . 24 . 1 . 14 1 38 2 42 1 8 3 4 15 4 . 4 10 6 55 3 15 26 43 21 . 6 . 6 6 Terminals 408 | . 29 . . . 20 5 31 3 34 4 10 9 10 35 5 . 7 8 7 48 . 17 20 39 26 1 8 . 15 17 Fabricators 89 | . . . . . . . . . 17 . 4 . 4 . . . . . . 27 . . 21 . 9 . . . 7 . Repair Stations 10 | . . . . . 2 . . . 1 . . . 2 . . . . . . 1 . . 1 . 3 . . . . . Recycling Units 23 | . 1 . . . 2 . . . 8 . 3 . . . . . . 1 . . . . 3 . 1 . 4 . . . Scanalyzers 21 | . . . . . . . . . 13 . 1 . . . . . . . . . . . 7 . . . . . . . Garrison Access 41 | . . . . . 3 . 10 . 1 . 1 . . . . . . 5 . . 4 . 8 . 8 . 1 . . . Terminal Hacks 184 | . 11 . 2 . 11 3 17 1 8 2 2 3 4 21 5 . 5 . 3 23 . 8 15 15 8 1 1 . 10 5 Record 8 | . . . 1 . . . . . . . . . . . 4 . . . . . . . 3 . . . . . . . Part Schematic 7 | . . . . . . . . . . . 1 . . 1 . . . . . . . . 5 . . . . . . . Robot Schematic 7 | . . . . . . . . . . . . . . . . . . . . 3 . . . 1 2 . . . 1 . Robot Analysis 16 | . 2 . . . . . 4 . . . . . . . . . . . . 6 . 1 1 2 . . . . . . Prototype ID Bank 6 | . . . . . 2 . . . . . . . 1 1 . . . . . 1 . . . . 1 . . . . . Open Door 11 | . . . . . . 1 . . . . . 1 . 3 1 . . . . . . . . 1 . 1 . . 3 . Level Access Points 2 | . . . . . . . 1 . . . . . . . . . . . . 1 . . . . . . . . . . Branch Access Points 8 | . 1 . . . 1 . . . 1 . . . . 1 . . 1 . . . . . . . 1 . . . 2 . Emergency Access Points 13 | . . . . . . . 2 . . 1 . . 1 . . . 1 . 1 2 . 1 . 1 1 . . . . 2 Machine Index 6 | . . . . . 1 . 1 . . . . . 1 . . . . . . 1 . . . . 1 . . . . 1 Terminal Index 6 | . 1 . . . . . 1 . 1 . . . . 1 . . . . . 1 . . . . . . . . 1 . Repair Station Index 1 | . . . . . . . . . . . . . . 1 . . . . . . . . . . . . . . . . Garrison Index 7 | . . . . . . . 1 . 2 . . . . . . . 1 . . . . . 2 . . . . . 1 . Alert Level 11 | . . . . . 2 . 4 . . . . . 1 . . . 1 . . 1 . . . 1 . . . . . 1 Unreport Threat 11 | . . . . . 1 . 2 . . . . . . 2 . . . . . 1 . . . 3 . . . . 2 . Locate Traps 12 | . 3 . . . 2 . . . 1 . . . . 3 . . . . . 1 . 1 1 . . . . . . . Disarm Traps 4 | . . . . . . . . . . . . . . 2 . . . . . 1 . . . 1 . . . . . . Reprogram Traps 5 | . 1 . . . 1 . . . . . . . . 1 . . . . . 1 . 1 . . . . . . . . Dispatch Records 3 | . . . . . . . . . 1 . . . . 1 . . . . . . . . 1 . . . . . . . Patrol Status 3 | . . . . . . . . . . . . . . 1 . . 1 . . . . . 1 . . . . . . . Transport Status 1 | . 1 . . . . . . . . . . . . . . . . . . . . . . . . . . . . . Recall Investigation 2 | . . . . . . . . . 1 . 1 . . . . . . . . . . . . . . . . . . . Recall Reinforcements 3 | . . . . . 1 . . . 1 . . . . 1 . . . . . . . . . . . . . . . . Hauler Manifests 3 | . 1 . . . . . . . . . . . . . . . . . . 1 . . 1 . . . . . . . Registered Components 1 | . . . . . . . . . . . . . . 1 . . . . . . . . . . . . . . . . Registered Prototypes 1 | . . . . . . . . . . . . . . 1 . . . . . . . . . . . . . . . . Zone Layout 8 | . 1 . . . . . 1 . . . . . . . . . . . . 2 . 1 . . 2 . 1 . . . Garrison Registry 6 | . . . . . . 1 . . . . . 2 . . . . . . 1 . . 1 . 1 . . . . . . Patrol Navigation 7 | . . . . . . . . 1 . 1 . . . . . . . . 1 . . 2 . 2 . . . . . . Security Stations 3 | . . . . . . 1 . . . . . . . . . . . . . . . . . 2 . . . . . . Derelict Proto ID Bank 1 | . . . 1 . . . . . . . . . . . . . . . . . . . . . . . . . . . Disengage Seal 1 | . . . . . . . . . . . . . . . . . . . . . . . . . . . . . . 1 Fabricator Hacks 36 | . . . . . . . . . 7 . 1 . 1 . . . . . . 9 . . 9 . 5 . . . 4 . Network Status 6 | . . . . . . . . . 2 . . . . . . . . . . 2 . . 1 . 1 . . . . . Load Schematic 15 | . . . . . . . . . 3 . . . 1 . . . . . . 3 . . 4 . 2 . . . 2 . Build 15 | . . . . . . . . . 2 . 1 . . . . . . . . 4 . . 4 . 2 . . . 2 . Repair Station Hacks 4 | . . . . . 2 . . . . . . . . . . . . . . . . . . . 2 . . . . . Scan Component 2 | . . . . . 1 . . . . . . . . . . . . . . . . . . . 1 . . . . . Repair 2 | . . . . . 1 . . . . . . . . . . . . . . . . . . . 1 . . . . . Recycling Unit Hacks 16 | . 1 . . . 1 . . . 4 . 2 . . . . . . 1 . . . . 3 . 1 . 3 . . . Process 3 | . . . . . . . . . 1 . . . . . . . . . . . . . 1 . . . 1 . . . Report Inventory 10 | . 1 . . . 1 . . . 3 . 1 . . . . . . 1 . . . . 1 . 1 . 1 . . . Retrieve Matter 2 | . . . . . . . . . . . . . . . . . . . . . . . 1 . . . 1 . . . Retrieve Components 1 | . . . . . . . . . . . 1 . . . . . . . . . . . . . . . . . . . Scanalyzer 17 | . . . . . . . . . 11 . . . . . . . . . . . . . 6 . . . . . . . Insert Component 8 | . . . . . . . . . 5 . . . . . . . . . . . . . 3 . . . . . . . Analyze 9 | . . . . . . . . . 6 . . . . . . . . . . . . . 3 . . . . . . . Garrison Access Hacks 11 | . . . . . 1 . 1 . 1 . 1 . . . . . . 2 . . 1 . 1 . 2 . 1 . . . Unlock Access 10 | . . . . . 1 . 1 . 1 . 1 . . . . . . 1 . . 1 . 1 . 2 . 1 . . . Coupler Status 1 | . . . . . . . . . . . . . . . . . . 1 . . . . . . . . . . . . Unauthorized Hacks 131 | . 10 . . . 6 . 18 . 21 . 4 . 4 5 . . 2 4 . 22 . 1 14 2 12 . 1 . 2 3 Terminals 71 | . 10 . . . 4 . 11 . 12 . 2 . 2 5 . . 2 1 . 10 . 1 2 2 2 . 1 . 1 3 Track 7 | . . . . . . . 3 . 2 . . . . . . . . . . 2 . . . . . . . . . . Botnet 44 | . 4 . . . 3 . 4 . 7 . 2 . 1 5 . . 1 1 . 5 . 1 2 1 2 . 1 . 1 3 Detonate 7 | . . . . . . . 2 . 1 . . . 1 . . . 1 . . 1 . . . 1 . . . . . . Disrupt 2 | . . . . . . . 2 . . . . . . . . . . . . . . . . . . . . . . . Operators 5 | . 1 . . . 1 . . . 1 . . . . . . . . . . 2 . . . . . . . . . . Skim 5 | . 5 . . . . . . . . . . . . . . . . . . . . . . . . . . . . . Sabotage 1 | . . . . . . . . . 1 . . . . . . . . . . . . . . . . . . . . . Fabricators 30 | . . . . . . . . . 7 . 2 . . . . . . . . 11 . . 5 . 4 . . . 1 . Report 3 | . . . . . . . . . . . . . . . . . . . . 2 . . 1 . . . . . . . Prioritize 9 | . . . . . . . . . 1 . 1 . . . . . . . . 3 . . 1 . 2 . . . 1 . Liberate 5 | . . . . . . . . . 1 . . . . . . . . . . 2 . . 1 . 1 . . . . . Fabnet 8 | . . . . . . . . . 3 . 1 . . . . . . . . 2 . . 1 . 1 . . . . . Haulers 4 | . . . . . . . . . 1 . . . . . . . . . . 2 . . 1 . . . . . . . Download 1 | . . . . . . . . . 1 . . . . . . . . . . . . . . . . . . . . . Repair Stations 6 | . . . . . . . . . 1 . . . 2 . . . . . . 1 . . 1 . 1 . . . . . Mechanics 2 | . . . . . . . . . 1 . . . . . . . . . . . . . . . 1 . . . . . Patch 4 | . . . . . . . . . . . . . 2 . . . . . . 1 . . 1 . . . . . . . Recycling Units 1 | . . . . . 1 . . . . . . . . . . . . . . . . . . . . . . . . . Tunnel 1 | . . . . . 1 . . . . . . . . . . . . . . . . . . . . . . . . . Scanalyzers 2 | . . . . . . . . . 1 . . . . . . . . . . . . . 1 . . . . . . . Extract 2 | . . . . . . . . . 1 . . . . . . . . . . . . . 1 . . . . . . . Garrison Access 21 | . . . . . 1 . 7 . . . . . . . . . . 3 . . . . 5 . 5 . . . . . Broadcast 5 | . . . . . 1 . 1 . . . . . . . . . . . . . . . 1 . 2 . . . . . Restock 1 | . . . . . . . 1 . . . . . . . . . . . . . . . . . . . . . . . Decoy 2 | . . . . . . . 1 . . . . . . . . . . . . . . . 1 . . . . . . . Redirect 1 | . . . . . . . 1 . . . . . . . . . . . . . . . . . . . . . . . Reprogram 5 | . . . . . . . 1 . . . . . . . . . . 1 . . . . 1 . 2 . . . . . Intercept 3 | . . . . . . . 1 . . . . . . . . . . 1 . . . . 1 . . . . . . . Watchers 4 | . . . . . . . 1 . . . . . . . . . . 1 . . . . 1 . 1 . . . . . Data Cores Recovered 8 | . . . . . 2 . 2 . . . 2 . . . . . . . . 1 . . . . . . . . 1 . Used 5 | . . . . . 1 . 1 . . . 1 . . . . . . . . 1 . . . . . . . . 1 . Hacking Detections 100 | . 8 . . . 7 2 5 1 16 2 5 2 4 7 . . 1 1 1 8 1 2 5 4 6 . 4 . 5 3 Full Trace Events 26 | . 1 . . . 2 . 1 1 6 . 2 2 3 1 . . . 1 . . . . 2 . 1 . 1 . 1 1 Feedback Events 6 | . . . . . . . . . 3 . 1 . . 1 . . . . . . . . . . . . . . . 1 Corruption 2 | . . . . . . . . . . . 1 . . 1 . . . . . . . . . . . . . . . . Hackware Fried 4 | . . . . . . . . . 3 . . . . . . . . . . . . . . . . . . . . 1 Feedback Blocked . | . . . . . . . . . . . . . . . . . . . . . . . . . . . . . . . Robot Schematics Acquired 7 | . . . . . . . . . . . . . . . . . . . . 3 . . . 1 2 . . . 1 . Robots Built 23 | . . . . . . . . . . . 3 . . . . . . . . 4 . . 8 . 4 . . . 4 . Authchips . | . . . . . . . . . . . . . . . . . . . . . . . . . . . . . . . Time 620 | . . . . . . . . . . . 76 . . . . . . . . 177 . . 140 . 85 . . . 142 . Total Robot Build Rating 153 | . . . . . . . . . . . 15 . . . . . . . . 24 . . 48 . 32 . . . 34 . Part Schematics Acquired 19 | . . . . . . . . . 7 . 1 . . 1 . . . . . . . . 10 . . . . . . . Parts Built 3 | . . . . . . . . . 2 . . . . . . . . . . 1 . . . . . . . . . . Authchips . | . . . . . . . . . . . . . . . . . . . . . . . . . . . . . . . Time 132 | . . . . . . . . . 94 . . . . . . . . . . 38 . . . . . . . . . . Total Part Build Rating 15 | . . . . . . . . . 10 . . . . . . . . . . 5 . . . . . . . . . . Parts Repaired 1 | . . . . . 1 . . . . . . . . . . . . . . . . . . . . . . . . . Time 89 | . . . . . 38 . . . . . . . . . . . . . . . . . . . 51 . . . . . Parts Recycled . | . . . . . . . . . . . . . . . . . . . . . . . . . . . . . . . Recycled Matter 163 | . . . . . . . . . 92 . . . . . . . . . . . . . 50 . . . 21 . . . Retrieved Matter 71 | . . . . . . . . . . . . . . . . . . . . . . . 50 . . . 21 . . . Retrieved Components 3 | . . . . . . . . . . . 3 . . . . . . . . . . . . . . . . . . . Parts Scanalyzed 8 | . . . . . . . . . 5 . . . . . . . . . . . . . 3 . . . . . . . Part Schematics Acquired 7 | . . . . . . . . . 4 . . . . . . . . . . . . . 3 . . . . . . . Parts Damaged . | . . . . . . . . . . . . . . . . . . . . . . . . . . . . . . . Bothacking | -11 -10 -10 -10 -9 -8 -8 -8 -8 -7 -7 -6 -6 -5 -5 -5 -5 -5 -4 -4 -4 -3 -3 -3 -3 -2 -2 -2 -2 -1 -1 ------------ Run | Yrd Mat Min Exi Min Mat Gar Mat Gar Fac Gar Fac Gar Fac Ext Cet Arc Hub Fac Gar Arm Res Gar Res Gar Res Gar Res Gar Acc Com Used RIF Installer 11 | . . . . . . 1 . 1 . 1 . 2 . . . . . . 2 . . 1 . 1 . 1 . 1 . . Coupler Efficiency 1 | . . . . . . . . . . . . 1 . . . . . . . . . . . . . . . . . . Threat Obfuscator 1 | . . . . . . . . . . . . . . . . . . . . . . . . 1 . . . . . . Signal Jammer 1 | . . . . . . . . 1 . . . . . . . . . . . . . . . . . . . . . . Zone Cloak 2 | . . . . . . . . . . . . . . . . . . . 2 . . . . . . . . . . . Patrol Navigation 1 | . . . . . . . . . . . . . . . . . . . . . . . . . . 1 . . . . Structural Interface 1 | . . . . . . . . . . 1 . . . . . . . . . . . . . . . . . . . . Program Shield 1 | . . . . . . . . . . . . 1 . . . . . . . . . . . . . . . . . . Autooverride 1 | . . . . . . . . . . . . . . . . . . . . . . 1 . . . . . . . . Autoassimilate 1 | . . . . . . . . . . . . . . . . . . . . . . . . . . . . 1 . . Robots Hacked 207 | . . . . . . 3 1 8 6 1 1 10 9 1 8 . . . 5 16 . 18 5 24 30 22 5 23 8 3 Non-combat 20 | . . . . . . . . . 3 . . . 5 . . . . . . 1 . 1 1 . 4 . 1 1 3 . Combat 187 | . . . . . . 3 1 8 3 1 1 10 4 1 8 . . . 5 15 . 17 4 24 26 22 4 22 5 3 Autooverrided 19 | . . . . . . . . . . . . . . . . . . . . . . . 1 3 7 3 1 4 . . Robot Hacks Applied 198 | . . . . . . 3 1 8 8 1 . 7 9 1 10 . . . 5 17 . 21 4 23 22 19 8 19 9 3 parse_system 10 | . . . . . . . . . . . . . . . 2 . . . . 1 . . 1 1 2 . 1 1 1 . no_distress 1 | . . . . . . . . . . . . . . . . . . . . . . . . . . . 1 . . . generate_echo 3 | . . . . . . . . . 2 . . . . . . . . . . . . . . . . . . . 1 . map_walls 1 | . . . . . . . . . 1 . . . . . . . . . . . . . . . . . . . . . find_fabricator 1 | . . . . . . . . . . . . . . . . . . . . . . . . . . . 1 . . . find_dsf 1 | . . . . . . . . . . . . . . . . . . . . . . . . . . . 1 . . . drop_inventory 5 | . . . . . . . . . 1 . . . . . . . . . . . . . . . 3 . 1 . . . ignore_parts 1 | . . . . . . . . . 1 . . . . . . . . . . . . . . . . . . . . . purge_threat 4 | . . . . . . . . . . . . . . . . . . . . 2 . 1 . . . . . . 1 . summon_haulers 1 | . . . . . . . . . . . . . . . . . . . . . . . . . . . . . 1 . map_route 3 | . . . . . . . . . . . . . 1 . . . . . . . . . 1 . 1 . . . . . mark_security 1 | . . . . . . . . . . . . . 1 . . . . . . . . . . . . . . . . . find_shortcuts 1 | . . . . . . . . . . . . . . . . . . . . . . . . 1 . . . . . . mark_system 2 | . . . . . . . . . . . . . . . . . . . . . . . . . . 1 . . 1 . broadcast_data 1 | . . . . . . . . . . . . . . . 1 . . . . . . . . . . . . . . . spike_heat 3 | . . . . . . . . 1 . . . . . . 1 . . . . . . 1 . . . . . . . . amplify_resonance 19 | . . . . . . . . . . . . . 1 . . . . . 1 2 . 4 . 3 3 1 . 4 . . wipe_record 1 | . . . . . . . . . . . . . . . . . . . . . . . . . . . . 1 . . reboot_system 3 | . . . . . . . . 1 . . . 1 . . 1 . . . . . . . . . . . . . . . overwrite_iff 27 | . . . . . . . . 1 1 . . . . 1 . . . . 3 1 . 6 . 4 1 4 . 5 . . streamctrl_high 1 | . . . . . . . . . . . . 1 . . . . . . . . . . . . . . . . . . formatsys_low 4 | . . . . . . . . . . . . . 1 . . . . . . 1 . 1 . . . . . . 1 . formatsys_high 104 | . . . . . . 3 1 5 2 1 . 5 5 . 5 . . . 1 10 . 8 2 14 12 13 3 8 3 3 Relay Couplers Released 158 | . . . . . . 20 3 12 . 16 . 15 . . . . . . 8 . . 14 . 30 2 20 . 18 . . Machine Destruction 144 | . . . . . . 16 . 12 . 16 . 11 . . . . . . 8 . . 14 . 30 2 17 . 18 . . Programmers 14 | . . . . . . 4 3 . . . . 4 . . . . . . . . . . . . . 3 . . . . Attached 84 | . . . . . . 2 . 2 2 11 . 5 2 . 4 . . . 6 3 . 6 1 12 4 11 2 7 2 2 Fabnet Peak Effective % 6 | . . . . . . . . . . . 6 6 5 5 5 5 5 1 1 1 3 3 3 3 4 4 4 4 4 4 Autooverrided 11 | . . . . . . . . . . . 1 3 . . . . . . . 2 . . . . 2 1 . 1 1 . Robots Rewired 34 | . . . . . . 2 . . . 3 3 3 1 . . . . . . 15 . 1 . . . 4 . 2 . . Allies Hacked 16 | . . . . . . . . . 1 . . . . . . . . . . 4 . 2 1 1 3 . . . 1 3 Hacks Repelled 2 | . . . . . . . . . . . . . . . . . . . . 1 . . . 1 . . . . . . Allies | -11 -10 -10 -10 -9 -8 -8 -8 -8 -7 -7 -6 -6 -5 -5 -5 -5 -5 -4 -4 -4 -3 -3 -3 -3 -2 -2 -2 -2 -1 -1 -------- Run | Yrd Mat Min Exi Min Mat Gar Mat Gar Fac Gar Fac Gar Fac Ext Cet Arc Hub Fac Gar Arm Res Gar Res Gar Res Gar Res Gar Acc Com Total Allies 267 | . . 2 . . . 5 1 8 6 6 7 12 7 10 10 . . . 4 36 . 18 15 24 28 27 4 22 10 5 Largest Group 25 | . . 2 2 . . 3 3 3 5 6 13 11 7 13 22 17 14 . 2 16 8 11 23 23 25 11 6 7 7 3 Highest-Rated Group 1662 | . . 45 45 . . 60 60 78 93 299 491 403 165 481 1305 1172 908 . 94 780 424 699 1320 1307 1662 595 354 416 466 276 Highest-Rated Ally 215 | . . 31 31 . . 31 29 39 29 95 90 85 51 159 159 153 96 . 47 68 65 95 95 95 178 83 148 95 178 215 Total Orders 5 | . . . . . . . . . . . . . . 3 1 . . . . . . . . . . . . . . 1 STAY 4 | . . . . . . . . . . . . . . 2 1 . . . . . . . . . . . . . . 1 FOLLOW 1 | . . . . . . . . . . . . . . 1 . . . . . . . . . . . . . . . . Ally Attacks 1744 | . . . . . . 23 27 62 105 21 57 151 11 60 37 26 79 . 5 181 11 69 83 100 281 91 25 74 116 49 Total Damage 56331 | . . . . . . 363 488 989 2748 747 1156 3407 277 1055 1009 854 2850 . 197 6397 402 2055 3188 3791 9426 3625 757 2223 3547 4780 Kills 282 | . . . . . . 5 2 9 24 8 8 21 6 7 5 4 8 . 2 29 2 10 19 17 55 8 2 11 13 7 Allies Corrupted 22 | . . . . . . . . . . . . . 1 . . . 6 . . 1 . . . 1 3 7 . . 2 1 Allies Melted 4 | . . . . . . . . . . . . . . . . . . . . 1 . . . 1 1 . 1 . . . Turrets Deployed 3 | . . . . . . . . . 3 . . . . . . . . . . . . . . . . . . . . . Intel | -11 -10 -10 -10 -9 -8 -8 -8 -8 -7 -7 -6 -6 -5 -5 -5 -5 -5 -4 -4 -4 -3 -3 -3 -3 -2 -2 -2 -2 -1 -1 ------- Run | Yrd Mat Min Exi Min Mat Gar Mat Gar Fac Gar Fac Gar Fac Ext Cet Arc Hub Fac Gar Arm Res Gar Res Gar Res Gar Res Gar Acc Com Robot Analysis Total 16 | . 2 . . . . . 4 . . . . . . . . . . . . 6 . 1 1 2 . . . . . . Derelict Logs Recovered . | . . . . . . . . . . . . . . . . . . . . . . . . . . . . . . . Drone Launches . | . . . . . . . . . . . . . . . . . . . . . . . . . . . . . . . Drone Recoveries . | . . . . . . . . . . . . . . . . . . . . . . . . . . . . . . . Exploration | -11 -10 -10 -10 -9 -8 -8 -8 -8 -7 -7 -6 -6 -5 -5 -5 -5 -5 -4 -4 -4 -3 -3 -3 -3 -2 -2 -2 -2 -1 -1 ------------- Run | Yrd Mat Min Exi Min Mat Gar Mat Gar Fac Gar Fac Gar Fac Ext Cet Arc Hub Fac Gar Arm Res Gar Res Gar Res Gar Res Gar Acc Com Turns Passed 19052 | 9 1180 435 381 339 1182 1060 427 850 1397 735 320 752 273 530 661 230 60 180 589 1099 69 670 613 703 802 722 265 905 876 738 Spaces Moved 17583 | 8 700 319 234 200 659 709 309 491 1548 1045 379 744 523 500 357 150 64 146 538 1121 53 795 643 888 863 918 343 904 783 649 Core 43 | . . . . . . . . . . . . 12 . . . . . . . . . . . 2 . . . . . 29 Treads 869 | . . 131 234 200 304 . . . . . . . . . . . . . . . . . . . . . . . . . Legs 518 | 8 510 . . . . . . . . . . . . . . . . . . . . . . . . . . . . . Wheels 378 | . 190 188 . . . . . . . . . . . . . . . . . . . . . . . . . . . . Hover 13500 | . . . . . . . . . 1137 1045 379 732 523 500 357 150 64 146 538 1121 53 795 643 886 863 918 343 904 783 620 Flight 2275 | . . . . . 355 709 309 491 411 . . . . . . . . . . . . . . . . . . . . . Fastest Speed 31 | 120 100 90 160 160 101 101 100 103 38 38 38 38 32 36 94 42 40 40 40 40 34 33 31 31 31 38 36 41 39 37 Average Speed 63 | 120 114 122 160 160 125 102 102 108 56 38 38 57 35 71 94 78 46 71 55 46 36 40 31 37 41 46 39 60 47 54 Slowest Speed 600 | 120 190 160 160 160 380 104 103 184 109 38 88 500 88 95 95 98 94 200 100 100 40 103 38 600 112 112 45 113 107 160 Overloaded Moves 15 | . . . . . . . . . . . . . . . . . 6 9 . . . . . . . . . . . . Propulsion Burnouts . | . . . . . . . . . . . . . . . . . . . . . . . . . . . . . . . Robots Hopped . | . . . . . . . . . . . . . . . . . . . . . . . . . . . . . . . Cave-ins Triggered . | . . . . . . . . . . . . . . . . . . . . . . . . . . . . . . . Exploration Rate (%) 51 | 3 96 68 59 43 54 71 40 56 46 92 14 77 20 82 90 85 10 6 59 65 2 66 21 88 33 95 13 92 25 26 Regions Visited 30 Branch Regions 9 Pre-discovered Areas 2 | . . . 1 . 1 . . . . . . . . . . . . . . . . . . . . . . . . . Known Exits Taken 21 | 1 1 1 1 1 1 . 1 . 1 . 1 . 1 1 1 1 1 1 . 1 1 . 1 . 1 . 1 . 1 . Unknown Exits Taken . | . . . . . . . . . . . . . . . . . . . . . . . . . . . . . . . Scrap Searched 2 | . . 1 . 1 . . . . . . . . . . . . . . . . . . . . . . . . . . Spaces Dug 8 | . . . . . . . . . 2 2 . . . . . . . . . . . . . . 2 . . 2 . . Terrain Destroyed 1041 | . 32 73 . . 73 . 40 75 135 20 6 36 45 28 1 12 156 10 2 35 1 12 3 5 6 4 43 20 137 31 Melee 4 | . . . . . . . . . . . . . . . . . . . . . . . . . 2 . . 2 . . Projectile 152 | . . . . . . . . 1 38 20 1 2 4 9 1 12 4 2 2 6 1 11 3 5 4 4 2 10 9 1 AOE 884 | . 32 73 . . 73 . 40 74 97 . 5 34 41 19 . . 152 8 . 29 . . . . . . 41 8 128 30 Terrain Rammed . | . . . . . . . . . . . . . . . . . . . . . . . . . . . . . . . Walls Destroyed . | . . . . . . . . . . . . . . . . . . . . . . . . . . . . . . . Machines Disabled . | . . . . . . . . . . . . . . . . . . . . . . . . . . . . . . . Actions | -11 -10 -10 -10 -9 -8 -8 -8 -8 -7 -7 -6 -6 -5 -5 -5 -5 -5 -4 -4 -4 -3 -3 -3 -3 -2 -2 -2 -2 -1 -1 --------- Run | Yrd Mat Min Exi Min Mat Gar Mat Gar Fac Gar Fac Gar Fac Ext Cet Arc Hub Fac Gar Arm Res Gar Res Gar Res Gar Res Gar Acc Com Total 23681 | 7 996 346 242 215 887 926 378 731 1889 1261 538 1013 592 590 671 225 78 200 796 1547 87 1060 1012 1194 1234 1167 442 1175 1197 985 Wait 3258 | . 228 7 . 7 82 49 24 59 104 37 124 139 18 31 286 42 2 15 166 241 20 136 317 139 201 99 28 107 315 235 Move 17557 | 7 699 318 233 199 658 708 308 490 1548 1044 379 743 522 499 356 149 64 145 537 1120 52 794 642 887 862 917 343 903 782 649 Hop . | . . . . . . . . . . . . . . . . . . . . . . . . . . . . . . . Pick Up 171 | . 8 1 6 1 5 12 . 8 17 6 3 7 4 3 . 1 . 1 14 7 . 6 3 19 5 12 4 5 8 5 Fast Attach 131 | . 2 . . 1 15 2 1 5 10 3 5 3 3 2 4 5 1 10 6 5 1 5 3 4 10 11 7 3 3 1 Attach 102 | . 3 8 . 1 . 1 . 4 5 4 1 9 3 4 2 . 1 5 3 6 1 6 . 3 3 7 5 . 5 12 Detach 69 | . 1 . 2 . 1 2 . 1 1 2 3 5 1 . 2 4 . 4 2 4 . 6 2 1 6 5 5 . 1 8 Swap 392 | . 4 1 . 2 13 14 9 13 37 17 3 5 9 8 3 3 2 4 10 29 3 21 12 31 43 23 13 24 20 16 Drop 205 | . 6 . 1 . 17 12 1 10 24 5 3 . 8 . . 3 . 4 18 7 3 4 6 20 14 13 6 8 7 5 Fire 1218 | . 42 11 . 1 90 97 32 66 101 68 12 51 20 43 18 18 7 12 28 87 7 60 26 67 44 42 17 53 54 44 Melee 110 | . . . . . . 3 1 9 8 2 . 13 . . . . . . . . . . . . 28 18 12 14 . 2 Ram 4 | . . . . . . . . . 1 . . . . . . . 1 . . . . . . . 1 . . . . 1 Kick 3 | . 3 . . . . . . . . . . . . . . . . . . . . . . . . . . . . . Crush 5 | . . . . 3 2 . . . . . . . . . . . . . . . . . . . . . . . . . Escape Stasis 245 | . . . . . . . . 54 . 63 . 23 . . . . . . 11 . . 13 . 12 . 13 . 52 . 4 Rewire 119 | . . . . . . 6 1 2 2 9 5 5 4 . . . . . 1 41 . 9 1 11 7 4 2 5 2 2 Trap 92 | . . . . . 4 20 1 10 31 1 . 10 . . . . . . . . . . . . 10 3 . 1 . 1 Miscellaneous . | . . . . . . . . . . . . . . . . . . . . . . . . . . . . . . . Route ------- -11/Scrapyard -10/Materials (discovered 6 exits: *Mat x3 / *Min x2 / Sub) -10/Mines (discovered 3 exits: Mat x2 / *Exi) -10/Exiles -9/Mines -8/Materials (discovered 2 exits: *Fac / Gar) -8/Garrison (discovered 3 exits: *Mat x3) -8/Materials (discovered 4 exits: Fac x3 / Gar) -8/Garrison (discovered 3 exits: *Fac x2 / *Mat) -7/Factory (discovered 4 exits: *Fac / Low x2 / Gar) -7/Garrison (discovered 4 exits: *Fac x3 / *Fac) -6/Factory -6/Garrison (discovered 3 exits: *Fac x3) -5/Factory -5/Extension (discovered 2 exits: *Fac / *Cet) -5/Cetus (discovered 3 exits: *Fac x2 / *Arc) -5/Archives (discovered 3 exits: *Fac / *Hub x2) -5/Hub_04(d) -4/Factory -4/Garrison (discovered 3 exits: *Arm x3) -4/Armory (discovered 2 exits: *Res x2) -3/Research -3/Garrison (discovered 3 exits: *Res x3) -3/Research (discovered 3 exits: *Res / *Qua / Gar) -3/Garrison (discovered 3 exits: *Res x3) -2/Research (discovered 5 exits: *Acc / *Tes x2 / Gar / Gar) -2/Garrison (discovered 3 exits: *Res x3) -2/Research -2/Garrison (discovered 3 exits: *Acc x3) -1/Access -1/Command History --------- Turn | Location | Event 1 | -11/Scrapyard | Identified exit to Materials 1 | -11/Scrapyard | Discovered exit to Materials (range 2) 10 | -11/Scrapyard | Entered Materials 10 | -10/Materials | Evolved 1 slot: Utility x1 300 | -10/Materials | Build established: Hacker-Mutant 305 | -10/Materials | Identified exit to Mines 305 | -10/Materials | Discovered exit to Mines (range 12) 438 | -10/Materials | Identified exit to Materials 438 | -10/Materials | Discovered exit to Materials (range 4) 576 | -10/Materials | Discovered exit to Materials (range 15) 703 | -10/Materials | Discovered exit to Materials (range 15) 862 | -10/Materials | Learned location of 1 exit from Storage 984 | -10/Materials | Learned 4 Recycling zone layouts 1030 | -10/Materials | Identified exit to Subcaves 1065 | -10/Materials | Learned 4 Recycling zone layouts 1092 | -10/Materials | Learned 2 Storage zone layouts 1127 | -10/Materials | Learned Storage emergency access door positions 1190 | -10/Materials | Entered Mines 1304 | -10/Mines | Assembled infested the area 1351 | -10/Mines | Destroyed 19 combat bots 1357 | -10/Mines | Lost 3 parts (1n1u1w) 1397 | -10/Mines | Core integrity fell below 50% 1426 | -10/Mines | Lost 5 parts (1p1n1u2w) 1613 | -10/Mines | Deemed a non-threat by the Exiles lab entrance 1613 | -10/Mines | Identified exit to Exiles 1613 | -10/Mines | Discovered exit to Exiles (range 5) 1625 | -10/Mines | Entered Exiles 1625 | -10/Exiles | Accompanied by 2 allies 1655 | -10/Exiles | Led the pair of lost Derelicts to a safe place 1663 | -10/Exiles | Met 8R-AWN 1725 | -10/Exiles | Met EX-HEX 1772 | -10/Exiles | Met EX-BIN 1791 | -10/Exiles | Aligned with FarCom system 1793 | -10/Exiles | Given EX-Vault access code 1829 | -10/Exiles | Opened EX-Vault 1841 | -10/Exiles | Found Deploy-a-Sentry 1843 | -10/Exiles | Found Deploy-a-Sentry 1846 | -10/Exiles | Found Deploy-a-Sentry 1879 | -10/Exiles | Warned to stay clear of 0b10 Research branches 1931 | -10/Exiles | Met EX-DEC 1937 | -10/Exiles | Learned location of Zion (-6) 1985 | -10/Exiles | Identified exit to Mines 1985 | -10/Exiles | Discovered exit to Mines (range 14) 2006 | -10/Exiles | Left Exiles lab with Deploy-a-Sentry 2006 | -10/Exiles | Entered Mines 2095 | -9/Mines | Found a hidden stash of uninstalled traps 2148 | -9/Mines | A weapon hastily lodged in a ceiling crevice suddenly fell to the ground 2339 | -9/Mines | Identified exit to Materials 2339 | -9/Mines | Discovered exit to Materials (range 5) 2345 | -9/Mines | Entered Materials 2345 | -8/Materials | Evolved 4 slots: Propulsion x2, Utility x2 2409 | -8/Materials | Build established: Trapper-Mutant 2703 | -8/Materials | Identified exit to Factory 2703 | -8/Materials | Discovered exit to Factory (range 16) 2716 | -8/Materials | Destroyed 7 combat bots 3087 | -8/Materials | Repaired Imp. Weapon Shielding 3318 | -8/Materials | Identified exit to Garrison 3513 | -8/Materials | Build established: Hacker-Mutant 3527 | -8/Materials | Entered Garrison 3597 | -8/Garrison | Triggered checkpoint 3601 | -8/Garrison | Learned Materials security intel 3601 | -8/Garrison | Identified exit to Materials 3601 | -8/Garrison | Discovered exit to Materials (range 55) 3601 | -8/Garrison | Discovered exit to Materials (range 32) 3601 | -8/Garrison | Discovered exit to Materials (range 76) 3615 | -8/Garrison | Garrison Relay disabled 3789 | -8/Garrison | Triggered checkpoint 3837 | -8/Garrison | Triggered checkpoint 3915 | -8/Garrison | Triggered checkpoint 3955 | -8/Garrison | Garrison Relay disabled 4085 | -8/Garrison | Garrison Relay disabled 4175 | -8/Garrison | Triggered checkpoint 4295 | -8/Garrison | Triggered checkpoint 4357 | -8/Garrison | Garrison Relay disabled 4378 | -8/Garrison | Installed Relay Interface Framework 4472 | -8/Garrison | Triggered checkpoint 4551 | -8/Garrison | Triggered checkpoint 4587 | -8/Garrison | Entered Materials 4587 | -8/Materials | Accompanied by 3 allies 4723 | -8/Materials | Garrison activated, responded to threat 4873 | -8/Materials | Identified exit to Garrison 5014 | -8/Materials | Entered Garrison 5016 | -8/Garrison | Triggered checkpoint 5122 | -8/Garrison | Garrison Relay disabled 5153 | -8/Garrison | Rescued a captive Derelict 5162 | -8/Garrison | Rescued a captive Derelict 5219 | -8/Garrison | Triggered checkpoint 5262 | -8/Garrison | Triggered checkpoint 5307 | -8/Garrison | Triggered checkpoint 5365 | -8/Garrison | Core integrity fell below 50% 5408 | -8/Garrison | Triggered checkpoint 5476 | -8/Garrison | Triggered checkpoint 5490 | -8/Garrison | Identified exit to Materials 5490 | -8/Garrison | Discovered exit to Materials (range 5) 5539 | -8/Garrison | Discovered exit to Factory (range 10) 5632 | -8/Garrison | Triggered checkpoint 5642 | -8/Garrison | Garrison Relay disabled 5708 | -8/Garrison | Discovered exit to Factory (range 10) 5731 | -8/Garrison | Expanded RIF knowledge: Signal Jamming 5743 | -8/Garrison | Phase Generator disabled 5775 | -8/Garrison | Garrison Relay disabled 5864 | -8/Garrison | Entered Factory 5864 | -7/Factory | Accompanied by 3 allies 5864 | -7/Factory | Evolved 2 slots: Utility x2 6358 | -7/Factory | Lost 3 allies 6420 | -7/Factory | DAS Turret deployed 6422 | -7/Factory | DAS Turret deployed 6424 | -7/Factory | DAS Turret deployed 6427 | -7/Factory | Cargo convoy interrupted 6477 | -7/Factory | Found PL-3XN's Ring of Power 6565 | -7/Factory | Hacking Suite fried by hacking feedback 6565 | -7/Factory | Hacking Suite fried by hacking feedback 6593 | -7/Factory | Identified exit to Lower Caves 6664 | -7/Factory | Fabricated Bore Cannon (x1) 6717 | -7/Factory | Fabricated Bore Cannon (x1) 6785 | -7/Factory | Build established: Bothacker-Mutant 6977 | -7/Factory | System Shield fried by hacking feedback 7173 | -7/Factory | Identified exit to Factory 7173 | -7/Factory | Discovered exit to Factory (range 7) 7224 | -7/Factory | Destroyed 7 combat bots 7261 | -7/Factory | Identified exit to Garrison 7261 | -7/Factory | Entered Garrison 7317 | -7/Garrison | Garrison Relay disabled 7327 | -7/Garrison | Triggered checkpoint 7360 | -7/Garrison | Discovered exit to Factory (range 12) 7371 | -7/Garrison | Triggered checkpoint 7405 | -7/Garrison | Expanded RIF knowledge: Structural Interface 7424 | -7/Garrison | Spotted B-75 Beast 7433 | -7/Garrison | Discovered exit to Factory (range 5) 7443 | -7/Garrison | Garrison Relay disabled 7471 | -7/Garrison | Assimilated Beast 4a with formatsys_high 7499 | -7/Garrison | Triggered checkpoint 7616 | -7/Garrison | Triggered checkpoint 7641 | -7/Garrison | Triggered checkpoint 7679 | -7/Garrison | Found embedded Infiltrators 7682 | -7/Garrison | Triggered checkpoint 7689 | -7/Garrison | Garrison Relay disabled 7708 | -7/Garrison | Discovered exit to Factory (range 12) 7754 | -7/Garrison | H-XX Assembler disabled 7845 | -7/Garrison | Triggered checkpoint 7885 | -7/Garrison | Triggered checkpoint 7911 | -7/Garrison | Garrison Relay disabled 7935 | -7/Garrison | Triggered checkpoint 7954 | -7/Garrison | Identified exit to Factory 7954 | -7/Garrison | Discovered exit to Factory (range 3) 7996 | -7/Garrison | Entered Factory 7996 | -6/Factory | Accompanied by 6 allies 7996 | -6/Factory | Evolved 2 slots: Utility x2 8170 | -6/Factory | Fabricated G-50 Soldier (x3) 8236 | -6/Factory | Garrison activated, responded to threat 8246 | -6/Factory | Local machine network offline 8280 | -6/Factory | Identified exit to Garrison 8316 | -6/Factory | Entered Garrison 8316 | -6/Garrison | Accompanied by 8 allies 8326 | -6/Garrison | Triggered checkpoint 8463 | -6/Garrison | Spotted B-75 Beast 8464 | -6/Garrison | Triggered checkpoint 8466 | -6/Garrison | Triggered checkpoint 8467 | -6/Garrison | Assimilated Beast 5a with formatsys_high 8518 | -6/Garrison | Lost 4 allies 8529 | -6/Garrison | Triggered checkpoint 8530 | -6/Garrison | Triggered checkpoint 8560 | -6/Garrison | Expanded RIF knowledge: Program Shield 8595 | -6/Garrison | Identified exit to Factory 8595 | -6/Garrison | Discovered exit to Factory (range 58) 8595 | -6/Garrison | Discovered exit to Factory (range 32) 8595 | -6/Garrison | Discovered exit to Factory (range 31) 8606 | -6/Garrison | Triggered checkpoint 8641 | -6/Garrison | Expanded RIF knowledge: Coupler Efficiency 8651 | -6/Garrison | Lost 4 allies 8680 | -6/Garrison | Garrison Relay disabled 8710 | -6/Garrison | Triggered checkpoint 8754 | -6/Garrison | Lost 3 allies 8758 | -6/Garrison | Warlord forces raided the area 8771 | -6/Garrison | Spotted B-75 Beast 8779 | -6/Garrison | Found Relay Coupler [Proto] 8780 | -6/Garrison | Found Relay Coupler [Proto] 8781 | -6/Garrison | Found Relay Coupler [Proto] 8784 | -6/Garrison | Found Relay Coupler [Proto] 8823 | -6/Garrison | Allies destroyed B-75 Beast 8824 | -6/Garrison | Triggered checkpoint 8837 | -6/Garrison | Lost 3 allies 8848 | -6/Garrison | Triggered checkpoint 8871 | -6/Garrison | Garrison Relay disabled 8907 | -6/Garrison | Discovered exit to Factory (range 20) 8907 | -6/Garrison | Discovered exit to Factory (range 85) 8907 | -6/Garrison | Discovered exit to Factory (range 42) 8948 | -6/Garrison | Triggered checkpoint 8978 | -6/Garrison | Garrison Relay disabled 9068 | -6/Garrison | Entered Factory 9068 | -5/Factory | Accompanied by 2 allies 9068 | -5/Factory | Evolved 2 slots: Propulsion x1, Utility x1 9153 | -5/Factory | Build established: Botlord-Mutant 9317 | -5/Factory | Identified exit to Extension 9317 | -5/Factory | Discovered exit to Extension (range 20) 9341 | -5/Factory | Entered Extension 9341 | -5/Extension | Accompanied by 4 allies 9343 | -5/Extension | Disrupted transfer network 9415 | -5/Extension | Rescued a captive Derelict 9416 | -5/Extension | Rescued a captive Derelict 9447 | -5/Extension | Rescued a captive Derelict 9499 | -5/Extension | Spotted B-75 Beast 9519 | -5/Extension | Destroyed B-75 Beast 9525 | -5/Extension | Spotted B-75 Beast 9556 | -5/Extension | Allies destroyed B-75 Beast 9581 | -5/Extension | Lost 5 parts (2n3u) 9616 | -5/Extension | Rescued a captive Derelict 9656 | -5/Extension | Energy Cycler disabled 9656 | -5/Extension | Rescued a captive Derelict 9657 | -5/Extension | Rescued a captive Derelict 9658 | -5/Extension | Rescued a captive Derelict 9658 | -5/Extension | Rescued a captive Derelict 9659 | -5/Extension | Rescued a captive Derelict 9661 | -5/Extension | Rescued a captive Derelict 9683 | -5/Extension | Rescued A7 9728 | -5/Extension | Identified exit to Cetus 9762 | -5/Extension | Identified exit to Factory 9762 | -5/Extension | Discovered exit to Factory (range 10) 9799 | -5/Extension | Found Imp. Powered Armor 9871 | -5/Extension | Entered Cetus 9871 | -5/Cetus | Accompanied by 13 allies (A7) 9876 | -5/Cetus | Acquired a Cetus Manufacturing Module code from A7 9899 | -5/Cetus | Spotted Cetus Guard 9899 | -5/Cetus | Spotted Cetus Guard 9899 | -5/Cetus | Spotted Cetus Guard 9899 | -5/Cetus | Spotted Cetus Guard 9909 | -5/Cetus | Assimilated Cetus Guard with formatsys_high 9912 | -5/Cetus | Assimilated Cetus Guard with formatsys_high 9920 | -5/Cetus | Assimilated Cetus Guard with formatsys_high 9921 | -5/Cetus | Assimilated Cetus Guard with formatsys_high 9958 | -5/Cetus | Started Cetus Manufacturing Module 9966 | -5/Cetus | Escorted A7 to Cetus Mainframe 9983 | -5/Cetus | Manufactured an Enhanced Grunt 10008 | -5/Cetus | Manufactured an Enhanced Grunt 10033 | -5/Cetus | Manufactured an Enhanced Grunt 10058 | -5/Cetus | Manufactured an Enhanced Grunt 10083 | -5/Cetus | Manufactured an Enhanced Grunt 10146 | -5/Cetus | Identified exit to Archives 10146 | -5/Cetus | Discovered exit to Archives (range 22) 10166 | -5/Cetus | Spotted Cetus Guard 10166 | -5/Cetus | Spotted Cetus Guard 10166 | -5/Cetus | Spotted Cetus Guard 10166 | -5/Cetus | Spotted Cetus Guard 10168 | -5/Cetus | Discovered exit to Factory (range 21) 10175 | -5/Cetus | Allies destroyed Cetus Guard 10176 | -5/Cetus | Assimilated Cetus Guard with formatsys_high 10185 | -5/Cetus | Allies destroyed Cetus Guard 10186 | -5/Cetus | Allies destroyed Cetus Guard 10194 | -5/Cetus | Met Revision 17 10302 | -5/Cetus | Discovered exit to Factory (range 21) 10362 | -5/Cetus | Build established: Commander-Mutant 10532 | -5/Cetus | Entered Archives 10532 | -5/Archives | Accompanied by 17 allies (A7) 10537 | -5/Archives | Received a hacking code to weaken MAIN.C 10558 | -5/Archives | Identified exit to Hub_04(d) 10558 | -5/Archives | Discovered exit to Hub_04(d) (range 22) 10562 | -5/Archives | Unable to access archive contents 10566 | -5/Archives | Discovered exit to Hub_04(d) (range 22) 10593 | -5/Archives | Discovered exit to Factory (range 15) 10762 | -5/Archives | Entered Hub_04(d) 10762 | -5/Hub_04(d) | Accompanied by 14 allies 10762 | -5/Hub_04(d) | Discovered exit to Factory (range 10) 10777 | -5/Hub_04(d) | Spotted B-75 Beast 10785 | -5/Hub_04(d) | Network Hub disabled 10792 | -5/Hub_04(d) | Allies destroyed B-75 Beast 10797 | -5/Hub_04(d) | Spotted Lightning 10797 | -5/Hub_04(d) | Spotted Lightning 10814 | -5/Hub_04(d) | Spotted Lightning 10816 | -5/Hub_04(d) | Spotted Lightning 10818 | -5/Hub_04(d) | Spotted Lightning 10822 | -5/Hub_04(d) | Spotted Lightning 10822 | -5/Hub_04(d) | Entered Factory 10822 | -4/Factory | Evolved 2 slots: Utility x1, Weapon x1 10848 | -4/Factory | Lost 13 allies 10850 | -4/Factory | Lost 6 parts (1p4n1u) 10901 | -4/Factory | Lost 3 parts (1p1n1w) 11000 | -4/Factory | Identified exit to Garrison 11002 | -4/Factory | Entered Garrison 11008 | -4/Garrison | Expanded RIF knowledge: Zone Cloak 11014 | -4/Garrison | Build established: Wizard-Mutant 11028 | -4/Garrison | Garrison Relay disabled 11050 | -4/Garrison | Triggered checkpoint 11095 | -4/Garrison | Expanded RIF knowledge: Zone Cloak 11138 | -4/Garrison | Heavy support dispatched to Armory 11282 | -4/Garrison | Spotted B-86 Titan 11301 | -4/Garrison | Triggered checkpoint 11328 | -4/Garrison | Build established: Wizard-Gunner 11362 | -4/Garrison | Triggered checkpoint 11377 | -4/Garrison | Spotted B-75 Beast 11378 | -4/Garrison | Spotted B-86 Titan 11383 | -4/Garrison | Identified exit to Armory 11383 | -4/Garrison | Discovered exit to Armory (range 42) 11383 | -4/Garrison | Discovered exit to Armory (range 42) 11383 | -4/Garrison | Discovered exit to Armory (range 50) 11410 | -4/Garrison | Garrison Relay disabled 11422 | -4/Garrison | Lost 4 allies 11426 | -4/Garrison | Triggered checkpoint 11591 | -4/Garrison | Entered Armory 11621 | -4/Armory | Identified exit to Research 11841 | -4/Armory | First assault squad dispatched 11898 | -4/Armory | Fabricated Cld. Aerolev Unit (x1) 11907 | -4/Armory | Lost 3 allies 12008 | -4/Armory | Lost 4 allies 12123 | -4/Armory | Fabricated P-70 Sage (x2) 12152 | -4/Armory | Fabricated P-70 Sage (x2) 12192 | -4/Armory | Sage 7b assimilated hostile G-67 Veteran 12219 | -4/Armory | System corruption reached 10% 12224 | -4/Armory | Found Unknown Launcher 12224 | -4/Armory | Identified Gamma Bomb Array 12228 | -4/Armory | Found Gamma Bomb Array 12268 | -4/Armory | Sage 7c assimilated hostile B-60 Warrior 12269 | -4/Armory | Lost 3 allies 12324 | -4/Armory | Local machine network offline 12382 | -4/Armory | Spotted B-86 Titan 12406 | -4/Armory | Allies destroyed B-86 Titan 12432 | -4/Armory | Lost 3 allies 12437 | -4/Armory | Energy Cycler disabled 12437 | -4/Armory | Spotted Armor Guard 12437 | -4/Armory | Spotted Armor Guard 12449 | -4/Armory | Destroyed Armor Guard 12464 | -4/Armory | Allies destroyed Armor Guard 12504 | -4/Armory | Lost 4 allies 12690 | -4/Armory | Entered Research 12690 | -3/Research | Accompanied by 8 allies 12690 | -3/Research | Evolved 2 slots: Propulsion x1, Utility x1 12722 | -3/Research | Identified exit to Garrison 12725 | -3/Research | Garrison activated, responded to threat 12759 | -3/Research | Entered Garrison 12759 | -3/Garrison | Accompanied by 8 allies 12773 | -3/Garrison | Spotted B-86 Titan 12907 | -3/Garrison | Lost 3 allies 12939 | -3/Garrison | Build established: Wizard-Skirmisher 12954 | -3/Garrison | Spotted B-86 Titan 13003 | -3/Garrison | Destroyed B-86 Titan 13018 | -3/Garrison | Triggered checkpoint 13025 | -3/Garrison | Triggered checkpoint 13035 | -3/Garrison | Triggered checkpoint 13045 | -3/Garrison | Q-Series assembled to engage unique threat in Research 13053 | -3/Garrison | Garrison Relay disabled 13065 | -3/Garrison | Found embedded Infiltrators 13101 | -3/Garrison | Lost 5 allies 13121 | -3/Garrison | Triggered checkpoint 13159 | -3/Garrison | Identified exit to Research 13159 | -3/Garrison | Discovered exit to Research (range 56) 13159 | -3/Garrison | Discovered exit to Research (range 47) 13159 | -3/Garrison | Discovered exit to Research (range 14) 13171 | -3/Garrison | Triggered checkpoint 13177 | -3/Garrison | Expanded RIF knowledge: Autooverride 13181 | -3/Garrison | Garrison Relay disabled 13253 | -3/Garrison | Garrison Relay disabled 13348 | -3/Garrison | QS Assembler disabled 13359 | -3/Garrison | Found Prototype Processor 13359 | -3/Garrison | Identified Spectral Analyzer 13400 | -3/Garrison | Build established: Botlord-Skirmisher 13429 | -3/Garrison | Entered Research 13429 | -3/Research | Accompanied by 11 allies 13561 | -3/Research | Fabricated P-70 Sage (x2) 13591 | -3/Research | Fabricated P-70 Sage (x2) 13619 | -3/Research | Fabricated P-70 Sage (x2) 13629 | -3/Research | Revision forces began assault on 0b10 13647 | -3/Research | Fabricated P-70 Sage (x2) 13660 | -3/Research | Sage 8b assimilated hostile G-67 Veteran 13671 | -3/Research | Met up with Revision 17++ 13690 | -3/Research | Allied Derelicts emerged from ambush trap array 13715 | -3/Research | Identified exit to Quarantine 13715 | -3/Research | Discovered exit to Quarantine (range 23) 13738 | -3/Research | Identified exit to Research 13738 | -3/Research | Discovered exit to Research (range 20) 13942 | -3/Research | Identified exit to Garrison 14042 | -3/Research | Entered Garrison 14042 | -3/Garrison | Accompanied by 13 allies 14058 | -3/Garrison | Triggered checkpoint 14061 | -3/Garrison | Garrison Relay disabled 14064 | -3/Garrison | Sage 8e assimilated hostile S-43 Plague 14097 | -3/Garrison | Rescued a captive Derelict 14101 | -3/Garrison | Rescued a captive Derelict 14101 | -3/Garrison | Spotted B-86 Titan 14116 | -3/Garrison | Destroyed B-86 Titan 14122 | -3/Garrison | Triggered checkpoint 14128 | -3/Garrison | Triggered checkpoint 14146 | -3/Garrison | Triggered checkpoint 14166 | -3/Garrison | Build established: Botlord-Sprinter 14177 | -3/Garrison | Triggered checkpoint 14181 | -3/Garrison | Garrison Relay disabled 14205 | -3/Garrison | Discovered exit to Research (range 8) 14219 | -3/Garrison | Garrison Relay disabled 14222 | -3/Garrison | Garrison Relay disabled 14265 | -3/Garrison | Garrison Relay disabled 14322 | -3/Garrison | Discovered exit to Research (range 57) 14322 | -3/Garrison | Discovered exit to Research (range 21) 14322 | -3/Garrison | Discovered exit to Research (range 48) 14322 | -3/Garrison | Learned Research security intel 14353 | -3/Garrison | Expanded RIF knowledge: Threat Obfuscation 14375 | -3/Garrison | Learned Research security intel 14400 | -3/Garrison | Triggered checkpoint 14413 | -3/Garrison | Garrison Relay disabled 14443 | -3/Garrison | Triggered checkpoint 14532 | -3/Garrison | Build established: Botlord-Skirmisher 14564 | -3/Garrison | Triggered checkpoint 14587 | -3/Garrison | Garrison Relay disabled 14596 | -3/Garrison | Garrison Relay disabled 14608 | -3/Garrison | Triggered checkpoint 14745 | -3/Garrison | Entered Research 14745 | -2/Research | Accompanied by 21 allies 14745 | -2/Research | Evolved 2 slots: Power x1, Utility x1 14748 | -2/Research | Identified exit to Garrison 14757 | -2/Research | Found Zero-point Reactor 14760 | -2/Research | Found Zero-point Reactor 14762 | -2/Research | Found Zero-point Reactor 14810 | -2/Research | Identified exit to Testing 14900 | -2/Research | Lost 4 allies 14974 | -2/Research | Spotted B-90 Cyclops 14981 | -2/Research | Assimilated Cyclops 9a with formatsys_high 15018 | -2/Research | Lost 4 allies 15037 | -2/Research | Fabricated P-80 Master (x2) 15061 | -2/Research | Fabricated P-80 Master? 15078 | -2/Research | Spotted B-90 Cyclops 15103 | -2/Research | Destroyed B-90 Cyclops 15151 | -2/Research | Spotted B-90 Cyclops 15161 | -2/Research | Master 9a assimilated hostile B-90 Cyclops 15234 | -2/Research | Identified exit to Access 15234 | -2/Research | Discovered exit to Access (range 16) 15245 | -2/Research | First assault squad dispatched 15253 | -2/Research | Spotted B-90 Cyclops 15273 | -2/Research | Destroyed B-90 Cyclops 15318 | -2/Research | Lost 3 allies 15359 | -2/Research | Found Prototype Device 15359 | -2/Research | Identified Exp. EM Disruption Field 15374 | -2/Research | Identified exit to Garrison 15547 | -2/Research | Entered Garrison 15547 | -2/Garrison | Accompanied by 11 allies 15558 | -2/Garrison | Spotted B-90 Cyclops 15584 | -2/Garrison | Destroyed B-90 Cyclops 15615 | -2/Garrison | Lost 9 allies 15641 | -2/Garrison | Found Relay Coupler [Proto] 15645 | -2/Garrison | Found Relay Coupler [Proto] 15681 | -2/Garrison | Garrison Relay disabled 15683 | -2/Garrison | Triggered checkpoint 15710 | -2/Garrison | Rescued a captive Derelict 15711 | -2/Garrison | Rescued a captive Derelict 15723 | -2/Garrison | Triggered checkpoint 15727 | -2/Garrison | Local machine network offline 15746 | -2/Garrison | Spotted B-90 Cyclops 15757 | -2/Garrison | Triggered checkpoint 15779 | -2/Garrison | Allies destroyed B-90 Cyclops 15779 | -2/Garrison | Triggered checkpoint 15809 | -2/Garrison | Triggered checkpoint 15827 | -2/Garrison | Triggered checkpoint 15829 | -2/Garrison | Lost 5 parts (2n3u) 15874 | -2/Garrison | Lost 15 allies 15875 | -2/Garrison | Identified exit to Research 15875 | -2/Garrison | Discovered exit to Research (range 14) 15878 | -2/Garrison | Garrison Relay disabled 15962 | -2/Garrison | Lost 6 allies 15982 | -2/Garrison | Garrison Relay disabled 15994 | -2/Garrison | Triggered checkpoint 16006 | -2/Garrison | Discovered exit to Research (range 2) 16050 | -2/Garrison | Garrison Relay disabled 16071 | -2/Garrison | Discovered exit to Research (range 18) 16077 | -2/Garrison | Build established: Botlord-Mutant 16084 | -2/Garrison | Expanded RIF knowledge: Patrol Navigation 16269 | -2/Garrison | Entered Research 16269 | -2/Research | Accompanied by 3 allies 16306 | -2/Research | Found Exp. ECM Suite 16323 | -2/Research | Spotted B-90 Cyclops 16343 | -2/Research | Assimilated Cyclops 9c with formatsys_high 16365 | -2/Research | Spotted B-90 Cyclops 16373 | -2/Research | Lost 5 allies 16395 | -2/Research | Destroyed B-90 Cyclops 16425 | -2/Research | Lost 3 parts (1n1u1w) 16508 | -2/Research | Found Fusion Bomb Launcher 16534 | -2/Research | Identified exit to Garrison 16534 | -2/Research | Entered Garrison 16557 | -2/Garrison | Local machine network offline 16593 | -2/Garrison | Lost 3 allies 16638 | -2/Garrison | Triggered checkpoint 16645 | -2/Garrison | Triggered checkpoint 16676 | -2/Garrison | Triggered checkpoint 16755 | -2/Garrison | Garrison Relay disabled 16767 | -2/Garrison | Found embedded Infiltrators 16778 | -2/Garrison | Discovered exit to Access (range 9) 16875 | -2/Garrison | Discovered exit to Access (range 12) 16905 | -2/Garrison | Triggered checkpoint 16948 | -2/Garrison | Triggered checkpoint 16960 | -2/Garrison | Garrison Relay disabled 17118 | -2/Garrison | Discovered exit to Access (range 15) 17150 | -2/Garrison | Garrison Relay disabled 17240 | -2/Garrison | Triggered checkpoint 17257 | -2/Garrison | Expanded RIF knowledge: Autoassimilate 17272 | -2/Garrison | Garrison Relay disabled 17294 | -2/Garrison | Triggered checkpoint 17343 | -2/Garrison | Build established: Botlord-Skirmisher 17439 | -2/Garrison | Entered Access 17439 | -1/Access | Accompanied by 7 allies 17439 | -1/Access | Evolved 2 slots: Propulsion x1, Utility x1 17452 | -1/Access | Identified exit to Command 17526 | -1/Access | Lost 4 allies 17678 | -1/Access | Lost 5 allies 17683 | -1/Access | Fabricated P-80 Master? 17689 | -1/Access | First assault squad dispatched 17775 | -1/Access | Master 10b assimilated hostile G-73 Enforcer 17800 | -1/Access | Fabricated H-88 Terminator? 18315 | -1/Access | Entered Command 18315 | -1/Command | Accompanied by 3 allies 18319 | -1/Command | Imp. Hacking Suite fried by hacking feedback 18352 | -1/Command | Disengaged cave seal 18504 | -1/Command | Master 10a assimilated hostile Y-72 Warden 18540 | -1/Command | Spotted B-99 Colossus 18549 | -1/Command | Spotted Striker 18556 | -1/Command | Assimilated Striker with formatsys_high 18561 | -1/Command | Spotted Alpha 7 18561 | -1/Command | Spotted Executioner 18561 | -1/Command | Spotted Executioner 18564 | -1/Command | Spotted M Guard 18565 | -1/Command | Spotted M Guard 18565 | -1/Command | Spotted Combat Programmer 18566 | -1/Command | Spotted Combat Programmer 18573 | -1/Command | Assimilated M Guard with formatsys_high 18584 | -1/Command | Assimilated M Guard with formatsys_high 18607 | -1/Command | Lost 3 allies 18608 | -1/Command | Destroyed Combat Programmer 18611 | -1/Command | System corruption reached 10% 18641 | -1/Command | Lost 8 parts (1p4n2u1w) 18644 | -1/Command | Build established: Botlord-Mutant 18671 | -1/Command | Found Prototype Launcher 18706 | -1/Command | Lost 3 parts (2u1w) 18747 | -1/Command | Identified Hellfire Missile Launcher 19034 | -1/Command | Spotted Alpha 7 19034 | -1/Command | Spotted Striker 19034 | -1/Command | Spotted Executioner 19034 | -1/Command | Spotted Executioner 19036 | -1/Command | Spotted B-99 Colossus 19043 | -1/Command | Core integrity fell below 50% 19048 | -1/Command | Core integrity fell below 20% 19052 | -1/Command | Spotted B-99 Colossus 19053 | -1/Command | Destroyed by Alpha 7 with Multirail Last Messages --------------- 19046_ Fusion Bomb intercepted. 19046_ Executioner shuts down. 19046_ Penetrated by Slug. 19046_ Slug penetrates Wall. 19047_ Fusion Bomb Launcher destroyed. 19048_ Slug penetrates Wall. 19049_ P-80 Master shuts down. 19049_ Penetrated by Slug. 19049_ Slug penetrates Reinforced Barrier. 19049_ Imp. Hacking Suite destroyed. 19050_ Penetrated by Slug. 19050_ Slug penetrates Executioner. 19050_ Slug penetrates Reinforced Barrier. 19050_ Relay Coupler [Proto] destroyed. 19050_ Critical hit (Burn: +37). 19050_ Penetrated by Slug. 19050_ Slug penetrates Wall. 19051_ Slug penetrates Reinforced Barrier. 19052_ Slug penetrates Executioner. 19053_ Penetrated by Slug. Map ----- +----------------------------------------------------+ | ""#"#########" # """ #?????????????# # | | #! " #?????????????# # | | # #?????????????# # | | # #?????????????# ? | | !!! ##+##### #####?????????????? ? | | !]!! ## #???###?????????????????? ? | | "" ]!! ##+####+###?????????????????????? ? | | ! ] # ! #?????????????????????? ? | | ] # #?????????????????????? ? | | ## ^ # "" #????????????????????????? | | ?# % # """" #????????????????????????? | | ?# ^ ##### """" #????????????????????????? | | ?# ] #???# "" =#????????????????????????? | | ?#^] =! #???# #????????????????????????? | | ?#]] [%! #???# + ???????????????????????? | | ?# *=| #???#############??????????????????????? | | ?# #??????????????????????????????????????? | | ?# %! #??????????????????????????????????????? | | ?#" ##?????????????????????????????????????? | | ?#"" #????????????????????##########???????? | | ?#"" #????#??#######????? #???????? | | ?#T #???## ## ####?B #???????? | | ?#" #??## 7 # # ^ ?????????? | | ?#"" #### E "????????????????? | | ?#"" g E ^ "????????????????? | | ?# g K @ "????????????????? | | ?# p "????????????????? | | ?# p E ^ "????????????????? | | ?# ##########; 7 E "????????????????? | | ?# ?????? # # ^ ???????????? | | ?# ???# #### ####BB #???????? | | ?# ???# #??######????B #???????? | | ?# ???# #?????????????###########???????? | | ?# ????# #???????????????????????????????? | | ?# ????# !!! #???????????????????????????????? | | ?# ????# !!! #???????????????????????????????? | | ?#?????# !! #???????????????????????????????? | | ???????###########???????????????????????????????? | | ?????????????????????????????????????????????????? | | ?????????????????????????????????????????????????? | | ?????????????????????Y???????????????????????????? | | ?????????????????????????????????????????????????? | | ?????????????????????????????????????????????????? | | ?????????????????????????????????????????????????? | | ?????????????????????????????????????????????????? | | ?????????????????????????????????????????????????? | | ?????????????????????????????????????????????????? | | ?????????????????????????????????????????????????? | | ?????????????????????????????????????????????????? | | ?????????????????????????????????????????????????? | +----------------------------------------------------+ Best States ------------- Heat Dissipation 84 Coolant Potential 100 Energy Generation 61 Energy Capacity 465 Matter Stores 300 Matter Capacity 300 Sight Range 24 Terrain Scan Range 24 Terrain Scan Density 10 ECM Strength 3 Jamming Range 14 Cloak Strength 2 Additional Mass Support 9 Armor Coverage 625 Resistance: KI 35 Resistance: TH 45 Resistance: EX 35 Resistance: EM 50 Resistance: I 35 Resistance: S 35 Resistance: P 35 Propulsion Shielding 66 Utility Shielding 66 Weapon Shielding 66 Weapon Cycling 15 Evasion (%) 67 Targeting Accuracy 13 Target Analysis 12 Armor Integrity Analysis 30 Recoil Reduction 4 Kinecelleration 40 Offensive Hacking 56 Defensive Hacking 48 Relay Coupler Types 6 Relay Coupler Value 344 Trap Extractor Capacity 8 Item Schematics ----------------- Bore Cannon | -7/Factory | Scanalyzed Imp. Heavy Laser | -7/Factory | Scanalyzed Cld. Aerolev Unit | -7/Factory | Scanalyzed Prc. Shock Rifle | -7/Factory | Scanalyzed Com. Wheel | -7/Factory | Extracted Imp. Utility Shielding | -7/Factory | Extracted Hardcell Cannon | -7/Factory | Downloaded Imp. Powered Armor | -6/Factory | Hacked Imp. Force Field | -5/Extension | Hacked Imp. KE Penetrator | -3/Research | Scanalyzed Gamma Bomb Array | -3/Research | Scanalyzed Exp. Cooling System | -3/Research | Scanalyzed Imp. Thermal Shield | -3/Research | Extracted Hdn. Centrium Wheel | -3/Research | Extracted Antimissile System | -3/Research | Hacked Coolant Network | -3/Research | Hacked Lgt. Quantum Reactor | -3/Research | Hacked Exp. Hacking Suite | -3/Research | Hacked Exp. System Shield | -3/Research | Hacked Robot Schematics ------------------ P-70 Sage | -4/Armory | Hacked E-15 Imp | -4/Armory | Hacked L-61 Swordsman | -4/Armory | Hacked P-80 Master | -3/Garrison | Hacked M-30 Cleanser | -2/Research | Hacked H-88 Terminator | -2/Research | Hacked A-27 Freighter | -1/Access | Hacked Fabricated ------------ Bore Cannon | x1 | -7/Factory Bore Cannon | x1 | -7/Factory G-50 Soldier | x3 | -6/Factory | Preloaded Cld. Aerolev Unit | x1 | -4/Armory P-70 Sage | x2 | -4/Armory P-70 Sage | x2 | -4/Armory P-70 Sage | x2 | -3/Research P-70 Sage | x2 | -3/Research P-70 Sage | x2 | -3/Research P-70 Sage | x2 | -3/Research P-80 Master | x2 | -2/Research P-80 Master | x2 | -2/Research P-80 Master | x2 | -1/Access H-88 Terminator | x2 | -1/Access Alien Tech Used ----------------- None Achievements -------------- None Challenges ------------ None Game ------ Seed WeldingSignalExpander Manual? 0 Play Time 04:01:26 Cumulative 897.2 hours Start 2024.08.27 @ 12:19:14 End 2024.08.27 @ 16:32:52 Sessions 1 Manual Loads 0 Difficulty Explorer Special Mode None Game No. 1086 Rogue 806 Adventurer 124 Explorer 156 Win Type - Total 38 Types 28/0/8/1/0/0/0/1/0 Lore% 79 Gallery% 89 Achievement% 78 Wizard Run 0 Options --------- Layout 0 ASCII 0 Keyboard 1 Movement Numpad Keybinds 0 Fullscreen 2 Font 18/X11 Map View 76x50 Zoom Use 0% Tactical HUD 1 Map Filters NONE Filters NONE Steam 1 RUN: 4d6151eb-b8b0-42ee-80ec-4e4964fcc90d